Workbook

Sheet Home
B4: Price list NOARK Electric Europe s.r.o.
B6: Ukraine
B8: Valid from | D8: 2020-09-14

Sheet Price list
A2: Price list NOARK Electric Europe s.r.o. | D2: Valid from: | E2: =Valid -> 2020-09-14
A3: Ukraine
A4: Article No. | B4: Type | C4: Description | D4: Discount group | E4: Gross price (EUR) | F4: Discount | G4: Price with discount (EUR) | H4: Product EAN code | I4: Basic package (pc) | J4: EAN/GTIN code of basic package | K4: Carton package (pc) | L4: EAN/GTIN code of carton package | M4: Customs tariff | N4: Unit Weight (kg)
A6: Miniature Circuit Breakers Ex9BH, 10 kA
A7: 100270 | B7: Ex9BH 1P B1 | C7: Miniature Circuit Breaker 10 kA, characteristic B, 1 A, 1-pole | D7: NAA | E7: 7.08 | F7: =NAA -> 0 | G7: =E7*(1-F7) -> 7.08 | H7: 8592765002716 | I7: 12 | J7: 18592765002713 | K7: 144 | L7: 28592765002710 | M7: 8536201090 | N7: 0.12
A8: 100271 | B8: Ex9BH 1P B2 | C8: Miniature Circuit Breaker 10 kA, characteristic B, 2 A, 1-pole | D8: NAA | E8: 7.08 | F8: 0 | G8: 7.08 | H8: 8592765002723 | I8: 12 | J8: 18592765002720 | K8: 144 | L8: 28592765002727 | M8: 8536201090 | N8: 0.12
A9: 100272 | B9: Ex9BH 1P B3 | C9: Miniature Circuit Breaker 10 kA, characteristic B, 3 A, 1-pole | D9: NAA | E9: 7.08 | F9: 0 | G9: 7.08 | H9: 8592765002730 | I9: 12 | J9: 18592765002737 | K9: 144 | L9: 28592765002734 | M9: 8536201090 | N9: 0.12
A10: 100273 | B10: Ex9BH 1P B4 | C10: Miniature Circuit Breaker 10 kA, characteristic B, 4 A, 1-pole | D10: NAA | E10: 7.08 | F10: 0 | G10: 7.08 | H10: 8592765002747 | I10: 12 | J10: 18592765002744 | K10: 144 | L10: 28592765002741 | M10: 8536201090 | N10: 0.12
A11: 100274 | B11: Ex9BH 1P B6 | C11: Miniature Circuit Breaker 10 kA, characteristic B, 6 A, 1-pole | D11: NAA | E11: 6.86 | F11: 0 | G11: 6.86 | H11: 8592765002754 | I11: 12 | J11: 18592765002751 | K11: 144 | L11: 28592765002758 | M11: 8536201090 | N11: 0.12
A12: 100275 | B12: Ex9BH 1P B8 | C12: Miniature Circuit Breaker 10 kA, characteristic B, 8 A, 1-pole | D12: NAA | E12: 6.86 | F12: 0 | G12: 6.86 | H12: 8592765002761 | I12: 12 | J12: 18592765002768 | K12: 144 | L12: 28592765002765 | M12: 8536201090 | N12: 0.12
A13: 100276 | B13: Ex9BH 1P B10 | C13: Miniature Circuit Breaker 10 kA, characteristic B, 10 A, 1-pole | D13: NAA | E13: 4.84 | F13: 0 | G13: 4.84 | H13: 8592765002778 | I13: 12 | J13: 18592765002775 | K13: 144 | L13: 28592765002772 | M13: 8536201090 | N13: 0.12
A14: 100277 | B14: Ex9BH 1P B13 | C14: Miniature Circuit Breaker 10 kA, characteristic B, 13 A, 1-pole | D14: NAA | E14: 4.84 | F14: 0 | G14: 4.84 | H14: 8592765002785 | I14: 12 | J14: 18592765002782 | K14: 144 | L14: 28592765002789 | M14: 8536201090 | N14: 0.12
A15: 100278 | B15: Ex9BH 1P B16 | C15: Miniature Circuit Breaker 10 kA, characteristic B, 16 A, 1-pole | D15: NAA | E15: 4.84 | F15: 0 | G15: 4.84 | H15: 8592765002792 | I15: 12 | J15: 18592765002799 | K15: 144 | L15: 28592765002796 | M15: 8536201090 | N15: 0.12
A16: 100279 | B16: Ex9BH 1P B20 | C16: Miniature Circuit Breaker 10 kA, characteristic B, 20 A, 1-pole | D16: NAA | E16: 4.84 | F16: 0 | G16: 4.84 | H16: 8592765002808 | I16: 12 | J16: 18592765002805 | K16: 144 | L16: 28592765002802 | M16: 8536201090 | N16: 0.12
A17: 100280 | B17: Ex9BH 1P B25 | C17: Miniature Circuit Breaker 10 kA, characteristic B, 25 A, 1-pole | D17: NAA | E17: 4.84 | F17: 0 | G17: 4.84 | H17: 8592765002815 | I17: 12 | J17: 18592765002812 | K17: 144 | L17: 28592765002819 | M17: 8536201090 | N17: 0.12
A18: 100281 | B18: Ex9BH 1P B32 | C18: Miniature Circuit Breaker 10 kA, characteristic B, 32 A, 1-pole | D18: NAA | E18: 7.64 | F18: 0 | G18: 7.64 | H18: 8592765002822 | I18: 12 | J18: 18592765002829 | K18: 144 | L18: 28592765002826 | M18: 8536201090 | N18: 0.12
A19: 100282 | B19: Ex9BH 1P B40 | C19: Miniature Circuit Breaker 10 kA, characteristic B, 40 A, 1-pole | D19: NAA | E19: 7.64 | F19: 0 | G19: 7.64 | H19: 8592765002839 | I19: 12 | J19: 18592765002836 | K19: 144 | L19: 28592765002833 | M19: 8536201090 | N19: 0.12
A20: 100283 | B20: Ex9BH 1P B50 | C20: Miniature Circuit Breaker 10 kA, characteristic B, 50 A, 1-pole | D20: NAA | E20: 17.52 | F20: 0 | G20: 17.52 | H20: 8592765002846 | I20: 12 | J20: 18592765002843 | K20: 144 | L20: 28592765002840 | M20: 8536201090 | N20: 0.12
A21: 100284 | B21: Ex9BH 1P B63 | C21: Miniature Circuit Breaker 10 kA, characteristic B, 63 A, 1-pole | D21: NAA | E21: 19.35 | F21: 0 | G21: 19.35 | H21: 8592765002853 | I21: 12 | J21: 18592765002850 | K21: 144 | L21: 28592765002857 | M21: 8536201090 | N21: 0.12
A22: 100285 | B22: Ex9BH 1PN B1 | C22: Miniature Circuit Breaker 10 kA, characteristic B, 1 A, 1+Npole | D22: NAA | E22: 11.64 | F22: 0 | G22: 11.64 | H22: 8592765002860 | I22: 6 | J22: 18592765002867 | K22: 72 | L22: 28592765002864 | M22: 8536201090 | N22: 0.24
A23: 100286 | B23: Ex9BH 1PN B2 | C23: Miniature Circuit Breaker 10 kA, characteristic B, 2 A, 1+Npole | D23: NAA | E23: 11.64 | F23: 0 | G23: 11.64 | H23: 8592765002877 | I23: 6 | J23: 18592765002874 | K23: 72 | L23: 28592765002871 | M23: 8536201090 | N23: 0.24
A24: 100287 | B24: Ex9BH 1PN B3 | C24: Miniature Circuit Breaker 10 kA, characteristic B, 3 A, 1+Npole | D24: NAA | E24: 11.64 | F24: 0 | G24: 11.64 | H24: 8592765002884 | I24: 6 | J24: 18592765002881 | K24: 72 | L24: 28592765002888 | M24: 8536201090 | N24: 0.24
A25: 100288 | B25: Ex9BH 1PN B4 | C25: Miniature Circuit Breaker 10 kA, characteristic B, 4 A, 1+Npole | D25: NAA | E25: 11.64 | F25: 0 | G25: 11.64 | H25: 8592765002891 | I25: 6 | J25: 18592765002898 | K25: 72 | L25: 28592765002895 | M25: 8536201090 | N25: 0.24
A26: 100289 | B26: Ex9BH 1PN B6 | C26: Miniature Circuit Breaker 10 kA, characteristic B, 6 A, 1+Npole | D26: NAA | E26: 11.64 | F26: 0 | G26: 11.64 | H26: 8592765002907 | I26: 6 | J26: 18592765002904 | K26: 72 | L26: 28592765002901 | M26: 8536201090 | N26: 0.24
A27: 100290 | B27: Ex9BH 1PN B8 | C27: Miniature Circuit Breaker 10 kA, characteristic B, 8 A, 1+Npole | D27: NAA | E27: 11.64 | F27: 0 | G27: 11.64 | H27: 8592765002914 | I27: 6 | J27: 18592765002911 | K27: 72 | L27: 28592765002918 | M27: 8536201090 | N27: 0.24
A28: 100291 | B28: Ex9BH 1PN B10 | C28: Miniature Circuit Breaker 10 kA, characteristic B, 10 A, 1+Npole | D28: NAA | E28: 11.19 | F28: 0 | G28: 11.19 | H28: 8592765002921 | I28: 6 | J28: 18592765002928 | K28: 72 | L28: 28592765002925 | M28: 8536201090 | N28: 0.24
A29: 100292 | B29: Ex9BH 1PN B13 | C29: Miniature Circuit Breaker 10 kA, characteristic B, 13 A, 1+Npole | D29: NAA | E29: 11.19 | F29: 0 | G29: 11.19 | H29: 8592765002938 | I29: 6 | J29: 18592765002935 | K29: 72 | L29: 28592765002932 | M29: 8536201090 | N29: 0.24
A30: 100293 | B30: Ex9BH 1PN B16 | C30: Miniature Circuit Breaker 10 kA, characteristic B, 16 A, 1+Npole | D30: NAA | E30: 11.19 | F30: 0 | G30: 11.19 | H30: 8592765002945 | I30: 6 | J30: 18592765002942 | K30: 72 | L30: 28592765002949 | M30: 8536201090 | N30: 0.24
A31: 100294 | B31: Ex9BH 1PN B20 | C31: Miniature Circuit Breaker 10 kA, characteristic B, 20 A, 1+Npole | D31: NAA | E31: 11.19 | F31: 0 | G31: 11.19 | H31: 8592765002952 | I31: 6 | J31: 18592765002959 | K31: 72 | L31: 28592765002956 | M31: 8536201090 | N31: 0.24
A32: 100295 | B32: Ex9BH 1PN B25 | C32: Miniature Circuit Breaker 10 kA, characteristic B, 25 A, 1+Npole | D32: NAA | E32: 11.19 | F32: 0 | G32: 11.19 | H32: 8592765002969 | I32: 6 | J32: 18592765002966 | K32: 72 | L32: 28592765002963 | M32: 8536201090 | N32: 0.24
A33: 100296 | B33: Ex9BH 1PN B32 | C33: Miniature Circuit Breaker 10 kA, characteristic B, 32 A, 1+Npole | D33: NAA | E33: 13.59 | F33: 0 | G33: 13.59 | H33: 8592765002976 | I33: 6 | J33: 18592765002973 | K33: 72 | L33: 28592765002970 | M33: 8536201090 | N33: 0.24
A34: 100297 | B34: Ex9BH 1PN B40 | C34: Miniature Circuit Breaker 10 kA, characteristic B, 40 A, 1+Npole | D34: NAA | E34: 13.59 | F34: 0 | G34: 13.59 | H34: 8592765002983 | I34: 6 | J34: 18592765002980 | K34: 72 | L34: 28592765002987 | M34: 8536201090 | N34: 0.24
A35: 100298 | B35: Ex9BH 1PN B50 | C35: Miniature Circuit Breaker 10 kA, characteristic B, 50 A, 1+Npole | D35: NAA | E35: 44.41 | F35: 0 | G35: 44.41 | H35: 8592765002990 | I35: 6 | J35: 18592765002997 | K35: 72 | L35: 28592765002994 | M35: 8536201090 | N35: 0.24
A36: 100299 | B36: Ex9BH 1PN B63 | C36: Miniature Circuit Breaker 10 kA, characteristic B, 63 A, 1+Npole | D36: NAA | E36: 44.41 | F36: 0 | G36: 44.41 | H36: 8592765003003 | I36: 6 | J36: 18592765003000 | K36: 72 | L36: 28592765003007 | M36: 8536201090 | N36: 0.24
A37: 100300 | B37: Ex9BH 2P B1 | C37: Miniature Circuit Breaker 10 kA, characteristic B, 1 A, 2-pole | D37: NAA | E37: 16.33 | F37: 0 | G37: 16.33 | H37: 8592765003010 | I37: 6 | J37: 18592765003017 | K37: 72 | L37: 28592765003014 | M37: 8536201090 | N37: 0.24
A38: 100301 | B38: Ex9BH 2P B2 | C38: Miniature Circuit Breaker 10 kA, characteristic B, 2 A, 2-pole | D38: NAA | E38: 16.33 | F38: 0 | G38: 16.33 | H38: 8592765003027 | I38: 6 | J38: 18592765003024 | K38: 72 | L38: 28592765003021 | M38: 8536201090 | N38: 0.24
A39: 100302 | B39: Ex9BH 2P B3 | C39: Miniature Circuit Breaker 10 kA, characteristic B, 3 A, 2-pole | D39: NAA | E39: 16.33 | F39: 0 | G39: 16.33 | H39: 8592765003034 | I39: 6 | J39: 18592765003031 | K39: 72 | L39: 28592765003038 | M39: 8536201090 | N39: 0.24
A40: 100303 | B40: Ex9BH 2P B4 | C40: Miniature Circuit Breaker 10 kA, characteristic B, 4 A, 2-pole | D40: NAA | E40: 16.33 | F40: 0 | G40: 16.33 | H40: 8592765003041 | I40: 6 | J40: 18592765003048 | K40: 72 | L40: 28592765003045 | M40: 8536201090 | N40: 0.24
A41: 100304 | B41: Ex9BH 2P B6 | C41: Miniature Circuit Breaker 10 kA, characteristic B, 6 A, 2-pole | D41: NAA | E41: 16.33 | F41: 0 | G41: 16.33 | H41: 8592765003058 | I41: 6 | J41: 18592765003055 | K41: 72 | L41: 28592765003052 | M41: 8536201090 | N41: 0.24
A42: 100305 | B42: Ex9BH 2P B8 | C42: Miniature Circuit Breaker 10 kA, characteristic B, 8 A, 2-pole | D42: NAA | E42: 16.33 | F42: 0 | G42: 16.33 | H42: 8592765003065 | I42: 6 | J42: 18592765003062 | K42: 72 | L42: 28592765003069 | M42: 8536201090 | N42: 0.24
A43: 100306 | B43: Ex9BH 2P B10 | C43: Miniature Circuit Breaker 10 kA, characteristic B, 10 A, 2-pole | D43: NAA | E43: 15.14 | F43: 0 | G43: 15.14 | H43: 8592765003072 | I43: 6 | J43: 18592765003079 | K43: 72 | L43: 28592765003076 | M43: 8536201090 | N43: 0.24
A44: 100307 | B44: Ex9BH 2P B13 | C44: Miniature Circuit Breaker 10 kA, characteristic B, 13 A, 2-pole | D44: NAA | E44: 15.14 | F44: 0 | G44: 15.14 | H44: 8592765003089 | I44: 6 | J44: 18592765003086 | K44: 72 | L44: 28592765003083 | M44: 8536201090 | N44: 0.24
A45: 100308 | B45: Ex9BH 2P B16 | C45: Miniature Circuit Breaker 10 kA, characteristic B, 16 A, 2-pole | D45: NAA | E45: 15.14 | F45: 0 | G45: 15.14 | H45: 8592765003096 | I45: 6 | J45: 18592765003093 | K45: 72 | L45: 28592765003090 | M45: 8536201090 | N45: 0.24
A46: 100309 | B46: Ex9BH 2P B20 | C46: Miniature Circuit Breaker 10 kA, characteristic B, 20 A, 2-pole | D46: NAA | E46: 15.14 | F46: 0 | G46: 15.14 | H46: 8592765003102 | I46: 6 | J46: 18592765003109 | K46: 72 | L46: 28592765003106 | M46: 8536201090 | N46: 0.24
A47: 100310 | B47: Ex9BH 2P B25 | C47: Miniature Circuit Breaker 10 kA, characteristic B, 25 A, 2-pole | D47: NAA | E47: 15.14 | F47: 0 | G47: 15.14 | H47: 8592765003119 | I47: 6 | J47: 18592765003116 | K47: 72 | L47: 28592765003113 | M47: 8536201090 | N47: 0.24
A48: 100311 | B48: Ex9BH 2P B32 | C48: Miniature Circuit Breaker 10 kA, characteristic B, 32 A, 2-pole | D48: NAA | E48: 19.79 | F48: 0 | G48: 19.79 | H48: 8592765003126 | I48: 6 | J48: 18592765003123 | K48: 72 | L48: 28592765003120 | M48: 8536201090 | N48: 0.24
A49: 100312 | B49: Ex9BH 2P B40 | C49: Miniature Circuit Breaker 10 kA, characteristic B, 40 A, 2-pole | D49: NAA | E49: 19.79 | F49: 0 | G49: 19.79 | H49: 8592765003133 | I49: 6 | J49: 18592765003130 | K49: 72 | L49: 28592765003137 | M49: 8536201090 | N49: 0.24
A50: 100313 | B50: Ex9BH 2P B50 | C50: Miniature Circuit Breaker 10 kA, characteristic B, 50 A, 2-pole | D50: NAA | E50: 36.88 | F50: 0 | G50: 36.88 | H50: 8592765003140 | I50: 6 | J50: 18592765003147 | K50: 72 | L50: 28592765003144 | M50: 8536201090 | N50: 0.24
A51: 100314 | B51: Ex9BH 2P B63 | C51: Miniature Circuit Breaker 10 kA, characteristic B, 63 A, 2-pole | D51: NAA | E51: 38.08 | F51: 0 | G51: 38.08 | H51: 8592765003157 | I51: 6 | J51: 18592765003154 | K51: 72 | L51: 28592765003151 | M51: 8536201090 | N51: 0.24
A52: 100315 | B52: Ex9BH 3P B1 | C52: Miniature Circuit Breaker 10 kA, characteristic B, 1 A, 3-pole | D52: NAA | E52: 22.29 | F52: 0 | G52: 22.29 | H52: 8592765003164 | I52: 4 | J52: 18592765003161 | K52: 48 | L52: 28592765003168 | M52: 8536201090 | N52: 0.36
A53: 100316 | B53: Ex9BH 3P B2 | C53: Miniature Circuit Breaker 10 kA, characteristic B, 2 A, 3-pole | D53: NAA | E53: 22.29 | F53: 0 | G53: 22.29 | H53: 8592765003171 | I53: 4 | J53: 18592765003178 | K53: 48 | L53: 28592765003175 | M53: 8536201090 | N53: 0.36
A54: 100317 | B54: Ex9BH 3P B3 | C54: Miniature Circuit Breaker 10 kA, characteristic B, 3 A, 3-pole | D54: NAA | E54: 22.29 | F54: 0 | G54: 22.29 | H54: 8592765003188 | I54: 4 | J54: 18592765003185 | K54: 48 | L54: 28592765003182 | M54: 8536201090 | N54: 0.36
A55: 100318 | B55: Ex9BH 3P B4 | C55: Miniature Circuit Breaker 10 kA, characteristic B, 4 A, 3-pole | D55: NAA | E55: 22.29 | F55: 0 | G55: 22.29 | H55: 8592765003195 | I55: 4 | J55: 18592765003192 | K55: 48 | L55: 28592765003199 | M55: 8536201090 | N55: 0.36
A56: 100319 | B56: Ex9BH 3P B6 | C56: Miniature Circuit Breaker 10 kA, characteristic B, 6 A, 3-pole | D56: NAA | E56: 22.29 | F56: 0 | G56: 22.29 | H56: 8592765003201 | I56: 4 | J56: 18592765003208 | K56: 48 | L56: 28592765003205 | M56: 8536201090 | N56: 0.36
A57: 100320 | B57: Ex9BH 3P B8 | C57: Miniature Circuit Breaker 10 kA, characteristic B, 8 A, 3-pole | D57: NAA | E57: 22.29 | F57: 0 | G57: 22.29 | H57: 8592765003218 | I57: 4 | J57: 18592765003215 | K57: 48 | L57: 28592765003212 | M57: 8536201090 | N57: 0.36
A58: 100321 | B58: Ex9BH 3P B10 | C58: Miniature Circuit Breaker 10 kA, characteristic B, 10 A, 3-pole | D58: NAA | E58: 16.89 | F58: 0 | G58: 16.89 | H58: 8592765003225 | I58: 4 | J58: 18592765003222 | K58: 48 | L58: 28592765003229 | M58: 8536201090 | N58: 0.36
A59: 100322 | B59: Ex9BH 3P B13 | C59: Miniature Circuit Breaker 10 kA, characteristic B, 13 A, 3-pole | D59: NAA | E59: 16.89 | F59: 0 | G59: 16.89 | H59: 8592765003232 | I59: 4 | J59: 18592765003239 | K59: 48 | L59: 28592765003236 | M59: 8536201090 | N59: 0.36
A60: 100323 | B60: Ex9BH 3P B16 | C60: Miniature Circuit Breaker 10 kA, characteristic B, 16 A, 3-pole | D60: NAA | E60: 16.89 | F60: 0 | G60: 16.89 | H60: 8592765003249 | I60: 4 | J60: 18592765003246 | K60: 48 | L60: 28592765003243 | M60: 8536201090 | N60: 0.36
A61: 100324 | B61: Ex9BH 3P B20 | C61: Miniature Circuit Breaker 10 kA, characteristic B, 20 A, 3-pole | D61: NAA | E61: 16.89 | F61: 0 | G61: 16.89 | H61: 8592765003256 | I61: 4 | J61: 18592765003253 | K61: 48 | L61: 28592765003250 | M61: 8536201090 | N61: 0.36
A62: 100325 | B62: Ex9BH 3P B25 | C62: Miniature Circuit Breaker 10 kA, characteristic B, 25 A, 3-pole | D62: NAA | E62: 16.89 | F62: 0 | G62: 16.89 | H62: 8592765003263 | I62: 4 | J62: 18592765003260 | K62: 48 | L62: 28592765003267 | M62: 8536201090 | N62: 0.36
A63: 100326 | B63: Ex9BH 3P B32 | C63: Miniature Circuit Breaker 10 kA, characteristic B, 32 A, 3-pole | D63: NAA | E63: 24.39 | F63: 0 | G63: 24.39 | H63: 8592765003270 | I63: 4 | J63: 18592765003277 | K63: 48 | L63: 28592765003274 | M63: 8536201090 | N63: 0.36
A64: 100327 | B64: Ex9BH 3P B40 | C64: Miniature Circuit Breaker 10 kA, characteristic B, 40 A, 3-pole | D64: NAA | E64: 24.39 | F64: 0 | G64: 24.39 | H64: 8592765003287 | I64: 4 | J64: 18592765003284 | K64: 48 | L64: 28592765003281 | M64: 8536201090 | N64: 0.36
A65: 100328 | B65: Ex9BH 3P B50 | C65: Miniature Circuit Breaker 10 kA, characteristic B, 50 A, 3-pole | D65: NAA | E65: 42.21 | F65: 0 | G65: 42.21 | H65: 8592765003294 | I65: 4 | J65: 18592765003291 | K65: 48 | L65: 28592765003298 | M65: 8536201090 | N65: 0.36
A66: 100329 | B66: Ex9BH 3P B63 | C66: Miniature Circuit Breaker 10 kA, characteristic B, 63 A, 3-pole | D66: NAA | E66: 46.41 | F66: 0 | G66: 46.41 | H66: 8592765003300 | I66: 4 | J66: 18592765003307 | K66: 48 | L66: 28592765003304 | M66: 8536201090 | N66: 0.36
A67: 100330 | B67: Ex9BH 3PN B1 | C67: Miniature Circuit Breaker 10 kA, characteristic B, 1 A, 3+Npole | D67: NAA | E67: 36.83 | F67: 0 | G67: 36.83 | H67: 8592765003317 | I67: 3 | J67: 18592765003314 | K67: 36 | L67: 28592765003311 | M67: 8536201090 | N67: 0.48
A68: 100331 | B68: Ex9BH 3PN B2 | C68: Miniature Circuit Breaker 10 kA, characteristic B, 2 A, 3+Npole | D68: NAA | E68: 36.83 | F68: 0 | G68: 36.83 | H68: 8592765003324 | I68: 3 | J68: 18592765003321 | K68: 36 | L68: 28592765003328 | M68: 8536201090 | N68: 0.48
A69: 100332 | B69: Ex9BH 3PN B3 | C69: Miniature Circuit Breaker 10 kA, characteristic B, 3 A, 3+Npole | D69: NAA | E69: 36.83 | F69: 0 | G69: 36.83 | H69: 8592765003331 | I69: 3 | J69: 18592765003338 | K69: 36 | L69: 28592765003335 | M69: 8536201090 | N69: 0.48
A70: 100333 | B70: Ex9BH 3PN B4 | C70: Miniature Circuit Breaker 10 kA, characteristic B, 4 A, 3+Npole | D70: NAA | E70: 36.83 | F70: 0 | G70: 36.83 | H70: 8592765003348 | I70: 3 | J70: 18592765003345 | K70: 36 | L70: 28592765003342 | M70: 8536201090 | N70: 0.48
A71: 100334 | B71: Ex9BH 3PN B6 | C71: Miniature Circuit Breaker 10 kA, characteristic B, 6 A, 3+Npole | D71: NAA | E71: 36.83 | F71: =NAA -> 0 | G71: =E71*(1-F71) -> 36.83 | H71: 8592765003355 | I71: 3 | J71: 18592765003352 | K71: 36 | L71: 28592765003359 | M71: 8536201090 | N71: 0.48
A72: 100335 | B72: Ex9BH 3PN B8 | C72: Miniature Circuit Breaker 10 kA, characteristic B, 8 A, 3+Npole | D72: NAA | E72: 36.83 | F72: 0 | G72: 36.83 | H72: 8592765003362 | I72: 3 | J72: 18592765003369 | K72: 36 | L72: 28592765003366 | M72: 8536201090 | N72: 0.48
A73: 100336 | B73: Ex9BH 3PN B10 | C73: Miniature Circuit Breaker 10 kA, characteristic B, 10 A, 3+Npole | D73: NAA | E73: 25.99 | F73: 0 | G73: 25.99 | H73: 8592765003379 | I73: 3 | J73: 18592765003376 | K73: 36 | L73: 28592765003373 | M73: 8536201090 | N73: 0.48
A74: 100337 | B74: Ex9BH 3PN B13 | C74: Miniature Circuit Breaker 10 kA, characteristic B, 13 A, 3+Npole | D74: NAA | E74: 25.99 | F74: 0 | G74: 25.99 | H74: 8592765003386 | I74: 3 | J74: 18592765003383 | K74: 36 | L74: 28592765003380 | M74: 8536201090 | N74: 0.48
A75: 100338 | B75: Ex9BH 3PN B16 | C75: Miniature Circuit Breaker 10 kA, characteristic B, 16 A, 3+Npole | D75: NAA | E75: 25.99 | F75: 0 | G75: 25.99 | H75: 8592765003393 | I75: 3 | J75: 18592765003390 | K75: 36 | L75: 28592765003397 | M75: 8536201090 | N75: 0.48
A76: 100339 | B76: Ex9BH 3PN B20 | C76: Miniature Circuit Breaker 10 kA, characteristic B, 20 A, 3+Npole | D76: NAA | E76: 25.99 | F76: 0 | G76: 25.99 | H76: 8592765003409 | I76: 3 | J76: 18592765003406 | K76: 36 | L76: 28592765003403 | M76: 8536201090 | N76: 0.48
A77: 100340 | B77: Ex9BH 3PN B25 | C77: Miniature Circuit Breaker 10 kA, characteristic B, 25 A, 3+Npole | D77: NAA | E77: 25.99 | F77: 0 | G77: 25.99 | H77: 8592765003416 | I77: 3 | J77: 18592765003413 | K77: 36 | L77: 28592765003410 | M77: 8536201090 | N77: 0.48
A78: 100341 | B78: Ex9BH 3PN B32 | C78: Miniature Circuit Breaker 10 kA, characteristic B, 32 A, 3+Npole | D78: NAA | E78: 35.76 | F78: 0 | G78: 35.76 | H78: 8592765003423 | I78: 3 | J78: 18592765003420 | K78: 36 | L78: 28592765003427 | M78: 8536201090 | N78: 0.48
A79: 100342 | B79: Ex9BH 3PN B40 | C79: Miniature Circuit Breaker 10 kA, characteristic B, 40 A, 3+Npole | D79: NAA | E79: 35.76 | F79: 0 | G79: 35.76 | H79: 8592765003430 | I79: 3 | J79: 18592765003437 | K79: 36 | L79: 28592765003434 | M79: 8536201090 | N79: 0.48
A80: 100343 | B80: Ex9BH 3PN B50 | C80: Miniature Circuit Breaker 10 kA, characteristic B, 50 A, 3+Npole | D80: NAA | E80: 63.28 | F80: 0 | G80: 63.28 | H80: 8592765003447 | I80: 3 | J80: 18592765003444 | K80: 36 | L80: 28592765003441 | M80: 8536201090 | N80: 0.48
A81: 100344 | B81: Ex9BH 3PN B63 | C81: Miniature Circuit Breaker 10 kA, characteristic B, 63 A, 3+Npole | D81: NAA | E81: 63.28 | F81: 0 | G81: 63.28 | H81: 8592765003454 | I81: 3 | J81: 18592765003451 | K81: 36 | L81: 28592765003458 | M81: 8536201090 | N81: 0.48
A82: 100345 | B82: Ex9BH 4P B1 | C82: Miniature Circuit Breaker 10 kA, characteristic B, 1 A, 4-pole | D82: NAA | E82: 42.78 | F82: 0 | G82: 42.78 | H82: 8592765003461 | I82: 3 | J82: 18592765003468 | K82: 36 | L82: 28592765003465 | M82: 8536201090 | N82: 0.48
A83: 100346 | B83: Ex9BH 4P B2 | C83: Miniature Circuit Breaker 10 kA, characteristic B, 2 A, 4-pole | D83: NAA | E83: 42.78 | F83: 0 | G83: 42.78 | H83: 8592765003478 | I83: 3 | J83: 18592765003475 | K83: 36 | L83: 28592765003472 | M83: 8536201090 | N83: 0.48
A84: 100347 | B84: Ex9BH 4P B3 | C84: Miniature Circuit Breaker 10 kA, characteristic B, 3 A, 4-pole | D84: NAA | E84: 42.78 | F84: 0 | G84: 42.78 | H84: 8592765003485 | I84: 3 | J84: 18592765003482 | K84: 36 | L84: 28592765003489 | M84: 8536201090 | N84: 0.48
A85: 100348 | B85: Ex9BH 4P B4 | C85: Miniature Circuit Breaker 10 kA, characteristic B, 4 A, 4-pole | D85: NAA | E85: 42.78 | F85: 0 | G85: 42.78 | H85: 8592765003492 | I85: 3 | J85: 18592765003499 | K85: 36 | L85: 28592765003496 | M85: 8536201090 | N85: 0.48
A86: 100349 | B86: Ex9BH 4P B6 | C86: Miniature Circuit Breaker 10 kA, characteristic B, 6 A, 4-pole | D86: NAA | E86: 42.78 | F86: 0 | G86: 42.78 | H86: 8592765003508 | I86: 3 | J86: 18592765003505 | K86: 36 | L86: 28592765003502 | M86: 8536201090 | N86: 0.48
A87: 100350 | B87: Ex9BH 4P B8 | C87: Miniature Circuit Breaker 10 kA, characteristic B, 8 A, 4-pole | D87: NAA | E87: 42.78 | F87: 0 | G87: 42.78 | H87: 8592765003515 | I87: 3 | J87: 18592765003512 | K87: 36 | L87: 28592765003519 | M87: 8536201090 | N87: 0.48
A88: 100351 | B88: Ex9BH 4P B10 | C88: Miniature Circuit Breaker 10 kA, characteristic B, 10 A, 4-pole | D88: NAA | E88: 29.95 | F88: 0 | G88: 29.95 | H88: 8592765003522 | I88: 3 | J88: 18592765003529 | K88: 36 | L88: 28592765003526 | M88: 8536201090 | N88: 0.48
A89: 100352 | B89: Ex9BH 4P B13 | C89: Miniature Circuit Breaker 10 kA, characteristic B, 13 A, 4-pole | D89: NAA | E89: 29.95 | F89: 0 | G89: 29.95 | H89: 8592765003539 | I89: 3 | J89: 18592765003536 | K89: 36 | L89: 28592765003533 | M89: 8536201090 | N89: 0.48
A90: 100353 | B90: Ex9BH 4P B16 | C90: Miniature Circuit Breaker 10 kA, characteristic B, 16 A, 4-pole | D90: NAA | E90: 29.95 | F90: 0 | G90: 29.95 | H90: 8592765003546 | I90: 3 | J90: 18592765003543 | K90: 36 | L90: 28592765003540 | M90: 8536201090 | N90: 0.48
A91: 100354 | B91: Ex9BH 4P B20 | C91: Miniature Circuit Breaker 10 kA, characteristic B, 20 A, 4-pole | D91: NAA | E91: 29.95 | F91: 0 | G91: 29.95 | H91: 8592765003553 | I91: 3 | J91: 18592765003550 | K91: 36 | L91: 28592765003557 | M91: 8536201090 | N91: 0.48
A92: 100355 | B92: Ex9BH 4P B25 | C92: Miniature Circuit Breaker 10 kA, characteristic B, 25 A, 4-pole | D92: NAA | E92: 29.95 | F92: 0 | G92: 29.95 | H92: 8592765003560 | I92: 3 | J92: 18592765003567 | K92: 36 | L92: 28592765003564 | M92: 8536201090 | N92: 0.48
A93: 100356 | B93: Ex9BH 4P B32 | C93: Miniature Circuit Breaker 10 kA, characteristic B, 32 A, 4-pole | D93: NAA | E93: 41.29 | F93: 0 | G93: 41.29 | H93: 8592765003577 | I93: 3 | J93: 18592765003574 | K93: 36 | L93: 28592765003571 | M93: 8536201090 | N93: 0.48
A94: 100357 | B94: Ex9BH 4P B40 | C94: Miniature Circuit Breaker 10 kA, characteristic B, 40 A, 4-pole | D94: NAA | E94: 41.29 | F94: 0 | G94: 41.29 | H94: 8592765003584 | I94: 3 | J94: 18592765003581 | K94: 36 | L94: 28592765003588 | M94: 8536201090 | N94: 0.48
A95: 100358 | B95: Ex9BH 4P B50 | C95: Miniature Circuit Breaker 10 kA, characteristic B, 50 A, 4-pole | D95: NAA | E95: 74.2 | F95: 0 | G95: 74.2 | H95: 8592765003591 | I95: 3 | J95: 18592765003598 | K95: 36 | L95: 28592765003595 | M95: 8536201090 | N95: 0.48
A96: 100359 | B96: Ex9BH 4P B63 | C96: Miniature Circuit Breaker 10 kA, characteristic B, 63 A, 4-pole | D96: NAA | E96: 74.2 | F96: 0 | G96: 74.2 | H96: 8592765003607 | I96: 3 | J96: 18592765003604 | K96: 36 | L96: 28592765003601 | M96: 8536201090 | N96: 0.48
A97: 100360 | B97: Ex9BH 1P C1 | C97: Miniature Circuit Breaker 10 kA, characteristic C, 1 A, 1-pole | D97: NAA | E97: 7.08 | F97: 0 | G97: 7.08 | H97: 8592765003614 | I97: 12 | J97: 18592765003611 | K97: 144 | L97: 28592765003618 | M97: 8536201090 | N97: 0.12
A98: 100361 | B98: Ex9BH 1P C2 | C98: Miniature Circuit Breaker 10 kA, characteristic C, 2 A, 1-pole | D98: NAA | E98: 7.08 | F98: 0 | G98: 7.08 | H98: 8592765003621 | I98: 12 | J98: 18592765003628 | K98: 144 | L98: 28592765003625 | M98: 8536201090 | N98: 0.12
A99: 100362 | B99: Ex9BH 1P C3 | C99: Miniature Circuit Breaker 10 kA, characteristic C, 3 A, 1-pole | D99: NAA | E99: 7.08 | F99: 0 | G99: 7.08 | H99: 8592765003638 | I99: 12 | J99: 18592765003635 | K99: 144 | L99: 28592765003632 | M99: 8536201090 | N99: 0.12
A100: 100363 | B100: Ex9BH 1P C4 | C100: Miniature Circuit Breaker 10 kA, characteristic C, 4 A, 1-pole | D100: NAA | E100: 7.08 | F100: 0 | G100: 7.08 | H100: 8592765003645 | I100: 12 | J100: 18592765003642 | K100: 144 | L100: 28592765003649 | M100: 8536201090 | N100: 0.12
A101: 100364 | B101: Ex9BH 1P C6 | C101: Miniature Circuit Breaker 10 kA, characteristic C, 6 A, 1-pole | D101: NAA | E101: 6.86 | F101: 0 | G101: 6.86 | H101: 8592765003652 | I101: 12 | J101: 18592765003659 | K101: 144 | L101: 28592765003656 | M101: 8536201090 | N101: 0.12
A102: 100365 | B102: Ex9BH 1P C8 | C102: Miniature Circuit Breaker 10 kA, characteristic C, 8 A, 1-pole | D102: NAA | E102: 6.86 | F102: 0 | G102: 6.86 | H102: 8592765003669 | I102: 12 | J102: 18592765003666 | K102: 144 | L102: 28592765003663 | M102: 8536201090 | N102: 0.12
A103: 100366 | B103: Ex9BH 1P C10 | C103: Miniature Circuit Breaker 10 kA, characteristic C, 10 A, 1-pole | D103: NAA | E103: 4.84 | F103: 0 | G103: 4.84 | H103: 8592765003676 | I103: 12 | J103: 18592765003673 | K103: 144 | L103: 28592765003670 | M103: 8536201090 | N103: 0.12
A104: 100367 | B104: Ex9BH 1P C13 | C104: Miniature Circuit Breaker 10 kA, characteristic C, 13 A, 1-pole | D104: NAA | E104: 4.84 | F104: 0 | G104: 4.84 | H104: 8592765003683 | I104: 12 | J104: 18592765003680 | K104: 144 | L104: 28592765003687 | M104: 8536201090 | N104: 0.12
A105: 100368 | B105: Ex9BH 1P C16 | C105: Miniature Circuit Breaker 10 kA, characteristic C, 16 A, 1-pole | D105: NAA | E105: 4.84 | F105: 0 | G105: 4.84 | H105: 8592765003690 | I105: 12 | J105: 18592765003697 | K105: 144 | L105: 28592765003694 | M105: 8536201090 | N105: 0.12
A106: 100369 | B106: Ex9BH 1P C20 | C106: Miniature Circuit Breaker 10 kA, characteristic C, 20 A, 1-pole | D106: NAA | E106: 4.84 | F106: 0 | G106: 4.84 | H106: 8592765003706 | I106: 12 | J106: 18592765003703 | K106: 144 | L106: 28592765003700 | M106: 8536201090 | N106: 0.12
A107: 100370 | B107: Ex9BH 1P C25 | C107: Miniature Circuit Breaker 10 kA, characteristic C, 25 A, 1-pole | D107: NAA | E107: 4.84 | F107: 0 | G107: 4.84 | H107: 8592765003713 | I107: 12 | J107: 18592765003710 | K107: 144 | L107: 28592765003717 | M107: 8536201090 | N107: 0.12
A108: 100371 | B108: Ex9BH 1P C32 | C108: Miniature Circuit Breaker 10 kA, characteristic C, 32 A, 1-pole | D108: NAA | E108: 7.64 | F108: 0 | G108: 7.64 | H108: 8592765003720 | I108: 12 | J108: 18592765003727 | K108: 144 | L108: 28592765003724 | M108: 8536201090 | N108: 0.12
A109: 100372 | B109: Ex9BH 1P C40 | C109: Miniature Circuit Breaker 10 kA, characteristic C, 40 A, 1-pole | D109: NAA | E109: 7.64 | F109: 0 | G109: 7.64 | H109: 8592765003737 | I109: 12 | J109: 18592765003734 | K109: 144 | L109: 28592765003731 | M109: 8536201090 | N109: 0.12
A110: 100373 | B110: Ex9BH 1P C50 | C110: Miniature Circuit Breaker 10 kA, characteristic C, 50 A, 1-pole | D110: NAA | E110: 16.71 | F110: 0 | G110: 16.71 | H110: 8592765003744 | I110: 12 | J110: 18592765003741 | K110: 144 | L110: 28592765003748 | M110: 8536201090 | N110: 0.12
A111: 100374 | B111: Ex9BH 1P C63 | C111: Miniature Circuit Breaker 10 kA, characteristic C, 63 A, 1-pole | D111: NAA | E111: 19.35 | F111: 0 | G111: 19.35 | H111: 8592765003751 | I111: 12 | J111: 18592765003758 | K111: 144 | L111: 28592765003755 | M111: 8536201090 | N111: 0.12
A112: 100375 | B112: Ex9BH 1PN C1 | C112: Miniature Circuit Breaker 10 kA, characteristic C, 1 A, 1+Npole | D112: NAA | E112: 11.02 | F112: 0 | G112: 11.02 | H112: 8592765003768 | I112: 6 | J112: 18592765003765 | K112: 72 | L112: 28592765003762 | M112: 8536201090 | N112: 0.24
A113: 100376 | B113: Ex9BH 1PN C2 | C113: Miniature Circuit Breaker 10 kA, characteristic C, 2 A, 1+Npole | D113: NAA | E113: 11.02 | F113: 0 | G113: 11.02 | H113: 8592765003775 | I113: 6 | J113: 18592765003772 | K113: 72 | L113: 28592765003779 | M113: 8536201090 | N113: 0.24
A114: 100377 | B114: Ex9BH 1PN C3 | C114: Miniature Circuit Breaker 10 kA, characteristic C, 3 A, 1+Npole | D114: NAA | E114: 11.02 | F114: 0 | G114: 11.02 | H114: 8592765003782 | I114: 6 | J114: 18592765003789 | K114: 72 | L114: 28592765003786 | M114: 8536201090 | N114: 0.24
A115: 100378 | B115: Ex9BH 1PN C4 | C115: Miniature Circuit Breaker 10 kA, characteristic C, 4 A, 1+Npole | D115: NAA | E115: 11.02 | F115: 0 | G115: 11.02 | H115: 8592765003799 | I115: 6 | J115: 18592765003796 | K115: 72 | L115: 28592765003793 | M115: 8536201090 | N115: 0.24
A116: 100379 | B116: Ex9BH 1PN C6 | C116: Miniature Circuit Breaker 10 kA, characteristic C, 6 A, 1+Npole | D116: NAA | E116: 11.02 | F116: 0 | G116: 11.02 | H116: 8592765003805 | I116: 6 | J116: 18592765003802 | K116: 72 | L116: 28592765003809 | M116: 8536201090 | N116: 0.24
A117: 100380 | B117: Ex9BH 1PN C8 | C117: Miniature Circuit Breaker 10 kA, characteristic C, 8 A, 1+Npole | D117: NAA | E117: 11.02 | F117: 0 | G117: 11.02 | H117: 8592765003812 | I117: 6 | J117: 18592765003819 | K117: 72 | L117: 28592765003816 | M117: 8536201090 | N117: 0.24
A118: 100381 | B118: Ex9BH 1PN C10 | C118: Miniature Circuit Breaker 10 kA, characteristic C, 10 A, 1+Npole | D118: NAA | E118: 8.14 | F118: 0 | G118: 8.14 | H118: 8592765003829 | I118: 6 | J118: 18592765003826 | K118: 72 | L118: 28592765003823 | M118: 8536201090 | N118: 0.24
A119: 100382 | B119: Ex9BH 1PN C13 | C119: Miniature Circuit Breaker 10 kA, characteristic C, 13 A, 1+Npole | D119: NAA | E119: 8.14 | F119: 0 | G119: 8.14 | H119: 8592765003836 | I119: 6 | J119: 18592765003833 | K119: 72 | L119: 28592765003830 | M119: 8536201090 | N119: 0.24
A120: 100383 | B120: Ex9BH 1PN C16 | C120: Miniature Circuit Breaker 10 kA, characteristic C, 16 A, 1+Npole | D120: NAA | E120: 8.14 | F120: 0 | G120: 8.14 | H120: 8592765003843 | I120: 6 | J120: 18592765003840 | K120: 72 | L120: 28592765003847 | M120: 8536201090 | N120: 0.24
A121: 100384 | B121: Ex9BH 1PN C20 | C121: Miniature Circuit Breaker 10 kA, characteristic C, 20 A, 1+Npole | D121: NAA | E121: 8.14 | F121: 0 | G121: 8.14 | H121: 8592765003850 | I121: 6 | J121: 18592765003857 | K121: 72 | L121: 28592765003854 | M121: 8536201090 | N121: 0.24
A122: 100385 | B122: Ex9BH 1PN C25 | C122: Miniature Circuit Breaker 10 kA, characteristic C, 25 A, 1+Npole | D122: NAA | E122: 8.14 | F122: 0 | G122: 8.14 | H122: 8592765003867 | I122: 6 | J122: 18592765003864 | K122: 72 | L122: 28592765003861 | M122: 8536201090 | N122: 0.24
A123: 100386 | B123: Ex9BH 1PN C32 | C123: Miniature Circuit Breaker 10 kA, characteristic C, 32 A, 1+Npole | D123: NAA | E123: 13.29 | F123: 0 | G123: 13.29 | H123: 8592765003874 | I123: 6 | J123: 18592765003871 | K123: 72 | L123: 28592765003878 | M123: 8536201090 | N123: 0.24
A124: 100387 | B124: Ex9BH 1PN C40 | C124: Miniature Circuit Breaker 10 kA, characteristic C, 40 A, 1+Npole | D124: NAA | E124: 13.29 | F124: 0 | G124: 13.29 | H124: 8592765003881 | I124: 6 | J124: 18592765003888 | K124: 72 | L124: 28592765003885 | M124: 8536201090 | N124: 0.24
A125: 100388 | B125: Ex9BH 1PN C50 | C125: Miniature Circuit Breaker 10 kA, characteristic C, 50 A, 1+Npole | D125: NAA | E125: 39.69 | F125: 0 | G125: 39.69 | H125: 8592765003898 | I125: 6 | J125: 18592765003895 | K125: 72 | L125: 28592765003892 | M125: 8536201090 | N125: 0.24
A126: 100389 | B126: Ex9BH 1PN C63 | C126: Miniature Circuit Breaker 10 kA, characteristic C, 63 A, 1+Npole | D126: NAA | E126: 39.69 | F126: 0 | G126: 39.69 | H126: 8592765003904 | I126: 6 | J126: 18592765003901 | K126: 72 | L126: 28592765003908 | M126: 8536201090 | N126: 0.24
A127: 100390 | B127: Ex9BH 2P C1 | C127: Miniature Circuit Breaker 10 kA, characteristic C, 1 A, 2-pole | D127: NAA | E127: 16.4 | F127: 0 | G127: 16.4 | H127: 8592765003911 | I127: 6 | J127: 18592765003918 | K127: 72 | L127: 28592765003915 | M127: 8536201090 | N127: 0.24
A128: 100391 | B128: Ex9BH 2P C2 | C128: Miniature Circuit Breaker 10 kA, characteristic C, 2 A, 2-pole | D128: NAA | E128: 16.4 | F128: 0 | G128: 16.4 | H128: 8592765003928 | I128: 6 | J128: 18592765003925 | K128: 72 | L128: 28592765003922 | M128: 8536201090 | N128: 0.24
A129: 100392 | B129: Ex9BH 2P C3 | C129: Miniature Circuit Breaker 10 kA, characteristic C, 3 A, 2-pole | D129: NAA | E129: 16.4 | F129: 0 | G129: 16.4 | H129: 8592765003935 | I129: 6 | J129: 18592765003932 | K129: 72 | L129: 28592765003939 | M129: 8536201090 | N129: 0.24
A130: 100393 | B130: Ex9BH 2P C4 | C130: Miniature Circuit Breaker 10 kA, characteristic C, 4 A, 2-pole | D130: NAA | E130: 16.4 | F130: 0 | G130: 16.4 | H130: 8592765003942 | I130: 6 | J130: 18592765003949 | K130: 72 | L130: 28592765003946 | M130: 8536201090 | N130: 0.24
A131: 100394 | B131: Ex9BH 2P C6 | C131: Miniature Circuit Breaker 10 kA, characteristic C, 6 A, 2-pole | D131: NAA | E131: 16.4 | F131: 0 | G131: 16.4 | H131: 8592765003959 | I131: 6 | J131: 18592765003956 | K131: 72 | L131: 28592765003953 | M131: 8536201090 | N131: 0.24
A132: 100395 | B132: Ex9BH 2P C8 | C132: Miniature Circuit Breaker 10 kA, characteristic C, 8 A, 2-pole | D132: NAA | E132: 16.4 | F132: 0 | G132: 16.4 | H132: 8592765003966 | I132: 6 | J132: 18592765003963 | K132: 72 | L132: 28592765003960 | M132: 8536201090 | N132: 0.24
A133: 100396 | B133: Ex9BH 2P C10 | C133: Miniature Circuit Breaker 10 kA, characteristic C, 10 A, 2-pole | D133: NAA | E133: 11.42 | F133: 0 | G133: 11.42 | H133: 8592765003973 | I133: 6 | J133: 18592765003970 | K133: 72 | L133: 28592765003977 | M133: 8536201090 | N133: 0.24
A134: 100397 | B134: Ex9BH 2P C13 | C134: Miniature Circuit Breaker 10 kA, characteristic C, 13 A, 2-pole | D134: NAA | E134: 11.42 | F134: 0 | G134: 11.42 | H134: 8592765003980 | I134: 6 | J134: 18592765003987 | K134: 72 | L134: 28592765003984 | M134: 8536201090 | N134: 0.24
A135: 100398 | B135: Ex9BH 2P C16 | C135: Miniature Circuit Breaker 10 kA, characteristic C, 16 A, 2-pole | D135: NAA | E135: 11.42 | F135: =NAA -> 0 | G135: =E135*(1-F135) -> 11.42 | H135: 8592765003997 | I135: 6 | J135: 18592765003994 | K135: 72 | L135: 28592765003991 | M135: 8536201090 | N135: 0.24
A136: 100399 | B136: Ex9BH 2P C20 | C136: Miniature Circuit Breaker 10 kA, characteristic C, 20 A, 2-pole | D136: NAA | E136: 11.42 | F136: 0 | G136: 11.42 | H136: 8592765004000 | I136: 6 | J136: 18592765004007 | K136: 72 | L136: 28592765004004 | M136: 8536201090 | N136: 0.24
A137: 100400 | B137: Ex9BH 2P C25 | C137: Miniature Circuit Breaker 10 kA, characteristic C, 25 A, 2-pole | D137: NAA | E137: 11.42 | F137: 0 | G137: 11.42 | H137: 8592765004017 | I137: 6 | J137: 18592765004014 | K137: 72 | L137: 28592765004011 | M137: 8536201090 | N137: 0.24
A138: 100401 | B138: Ex9BH 2P C32 | C138: Miniature Circuit Breaker 10 kA, characteristic C, 32 A, 2-pole | D138: NAA | E138: 18.36 | F138: 0 | G138: 18.36 | H138: 8592765004024 | I138: 6 | J138: 18592765004021 | K138: 72 | L138: 28592765004028 | M138: 8536201090 | N138: 0.24
A139: 100402 | B139: Ex9BH 2P C40 | C139: Miniature Circuit Breaker 10 kA, characteristic C, 40 A, 2-pole | D139: NAA | E139: 18.36 | F139: 0 | G139: 18.36 | H139: 8592765004031 | I139: 6 | J139: 18592765004038 | K139: 72 | L139: 28592765004035 | M139: 8536201090 | N139: 0.24
A140: 100403 | B140: Ex9BH 2P C50 | C140: Miniature Circuit Breaker 10 kA, characteristic C, 50 A, 2-pole | D140: NAA | E140: 49.6 | F140: 0 | G140: 49.6 | H140: 8592765004048 | I140: 6 | J140: 18592765004045 | K140: 72 | L140: 28592765004042 | M140: 8536201090 | N140: 0.24
A141: 100404 | B141: Ex9BH 2P C63 | C141: Miniature Circuit Breaker 10 kA, characteristic C, 63 A, 2-pole | D141: NAA | E141: 49.6 | F141: 0 | G141: 49.6 | H141: 8592765004055 | I141: 6 | J141: 18592765004052 | K141: 72 | L141: 28592765004059 | M141: 8536201090 | N141: 0.24
A142: 100405 | B142: Ex9BH 3P C1 | C142: Miniature Circuit Breaker 10 kA, characteristic C, 1 A, 3-pole | D142: NAA | E142: 22.29 | F142: 0 | G142: 22.29 | H142: 8592765004062 | I142: 4 | J142: 18592765004069 | K142: 48 | L142: 28592765004066 | M142: 8536201090 | N142: 0.36
A143: 100406 | B143: Ex9BH 3P C2 | C143: Miniature Circuit Breaker 10 kA, characteristic C, 2 A, 3-pole | D143: NAA | E143: 22.29 | F143: 0 | G143: 22.29 | H143: 8592765004079 | I143: 4 | J143: 18592765004076 | K143: 48 | L143: 28592765004073 | M143: 8536201090 | N143: 0.36
A144: 100407 | B144: Ex9BH 3P C3 | C144: Miniature Circuit Breaker 10 kA, characteristic C, 3 A, 3-pole | D144: NAA | E144: 22.29 | F144: 0 | G144: 22.29 | H144: 8592765004086 | I144: 4 | J144: 18592765004083 | K144: 48 | L144: 28592765004080 | M144: 8536201090 | N144: 0.36
A145: 100408 | B145: Ex9BH 3P C4 | C145: Miniature Circuit Breaker 10 kA, characteristic C, 4 A, 3-pole | D145: NAA | E145: 22.29 | F145: 0 | G145: 22.29 | H145: 8592765004093 | I145: 4 | J145: 18592765004090 | K145: 48 | L145: 28592765004097 | M145: 8536201090 | N145: 0.36
A146: 100409 | B146: Ex9BH 3P C6 | C146: Miniature Circuit Breaker 10 kA, characteristic C, 6 A, 3-pole | D146: NAA | E146: 22.29 | F146: 0 | G146: 22.29 | H146: 8592765004109 | I146: 4 | J146: 18592765004106 | K146: 48 | L146: 28592765004103 | M146: 8536201090 | N146: 0.36
A147: 100410 | B147: Ex9BH 3P C8 | C147: Miniature Circuit Breaker 10 kA, characteristic C, 8 A, 3-pole | D147: NAA | E147: 22.29 | F147: 0 | G147: 22.29 | H147: 8592765004116 | I147: 4 | J147: 18592765004113 | K147: 48 | L147: 28592765004110 | M147: 8536201090 | N147: 0.36
A148: 100411 | B148: Ex9BH 3P C10 | C148: Miniature Circuit Breaker 10 kA, characteristic C, 10 A, 3-pole | D148: NAA | E148: 16.89 | F148: 0 | G148: 16.89 | H148: 8592765004123 | I148: 4 | J148: 18592765004120 | K148: 48 | L148: 28592765004127 | M148: 8536201090 | N148: 0.36
A149: 100412 | B149: Ex9BH 3P C13 | C149: Miniature Circuit Breaker 10 kA, characteristic C, 13 A, 3-pole | D149: NAA | E149: 16.89 | F149: 0 | G149: 16.89 | H149: 8592765004130 | I149: 4 | J149: 18592765004137 | K149: 48 | L149: 28592765004134 | M149: 8536201090 | N149: 0.36
A150: 100413 | B150: Ex9BH 3P C16 | C150: Miniature Circuit Breaker 10 kA, characteristic C, 16 A, 3-pole | D150: NAA | E150: 16.89 | F150: 0 | G150: 16.89 | H150: 8592765004147 | I150: 4 | J150: 18592765004144 | K150: 48 | L150: 28592765004141 | M150: 8536201090 | N150: 0.36
A151: 100414 | B151: Ex9BH 3P C20 | C151: Miniature Circuit Breaker 10 kA, characteristic C, 20 A, 3-pole | D151: NAA | E151: 16.89 | F151: 0 | G151: 16.89 | H151: 8592765004154 | I151: 4 | J151: 18592765004151 | K151: 48 | L151: 28592765004158 | M151: 8536201090 | N151: 0.36
A152: 100415 | B152: Ex9BH 3P C25 | C152: Miniature Circuit Breaker 10 kA, characteristic C, 25 A, 3-pole | D152: NAA | E152: 16.89 | F152: 0 | G152: 16.89 | H152: 8592765004161 | I152: 4 | J152: 18592765004168 | K152: 48 | L152: 28592765004165 | M152: 8536201090 | N152: 0.36
A153: 100416 | B153: Ex9BH 3P C32 | C153: Miniature Circuit Breaker 10 kA, characteristic C, 32 A, 3-pole | D153: NAA | E153: 24.39 | F153: 0 | G153: 24.39 | H153: 8592765004178 | I153: 4 | J153: 18592765004175 | K153: 48 | L153: 28592765004172 | M153: 8536201090 | N153: 0.36
A154: 100417 | B154: Ex9BH 3P C40 | C154: Miniature Circuit Breaker 10 kA, characteristic C, 40 A, 3-pole | D154: NAA | E154: 24.39 | F154: 0 | G154: 24.39 | H154: 8592765004185 | I154: 4 | J154: 18592765004182 | K154: 48 | L154: 28592765004189 | M154: 8536201090 | N154: 0.36
A155: 100418 | B155: Ex9BH 3P C50 | C155: Miniature Circuit Breaker 10 kA, characteristic C, 50 A, 3-pole | D155: NAA | E155: 46.84 | F155: 0 | G155: 46.84 | H155: 8592765004192 | I155: 4 | J155: 18592765004199 | K155: 48 | L155: 28592765004196 | M155: 8536201090 | N155: 0.36
A156: 100419 | B156: Ex9BH 3P C63 | C156: Miniature Circuit Breaker 10 kA, characteristic C, 63 A, 3-pole | D156: NAA | E156: 51.39 | F156: 0 | G156: 51.39 | H156: 8592765004208 | I156: 4 | J156: 18592765004205 | K156: 48 | L156: 28592765004202 | M156: 8536201090 | N156: 0.36
A157: 100420 | B157: Ex9BH 3PN C1 | C157: Miniature Circuit Breaker 10 kA, characteristic C, 1 A, 3+Npole | D157: NAA | E157: 36.08 | F157: 0 | G157: 36.08 | H157: 8592765004215 | I157: 3 | J157: 18592765004212 | K157: 36 | L157: 28592765004219 | M157: 8536201090 | N157: 0.48
A158: 100421 | B158: Ex9BH 3PN C2 | C158: Miniature Circuit Breaker 10 kA, characteristic C, 2 A, 3+Npole | D158: NAA | E158: 36.08 | F158: 0 | G158: 36.08 | H158: 8592765004222 | I158: 3 | J158: 18592765004229 | K158: 36 | L158: 28592765004226 | M158: 8536201090 | N158: 0.48
A159: 100422 | B159: Ex9BH 3PN C3 | C159: Miniature Circuit Breaker 10 kA, characteristic C, 3 A, 3+Npole | D159: NAA | E159: 36.08 | F159: 0 | G159: 36.08 | H159: 8592765004239 | I159: 3 | J159: 18592765004236 | K159: 36 | L159: 28592765004233 | M159: 8536201090 | N159: 0.48
A160: 100423 | B160: Ex9BH 3PN C4 | C160: Miniature Circuit Breaker 10 kA, characteristic C, 4 A, 3+Npole | D160: NAA | E160: 36.08 | F160: 0 | G160: 36.08 | H160: 8592765004246 | I160: 3 | J160: 18592765004243 | K160: 36 | L160: 28592765004240 | M160: 8536201090 | N160: 0.48
A161: 100424 | B161: Ex9BH 3PN C6 | C161: Miniature Circuit Breaker 10 kA, characteristic C, 6 A, 3+Npole | D161: NAA | E161: 36.08 | F161: 0 | G161: 36.08 | H161: 8592765004253 | I161: 3 | J161: 18592765004250 | K161: 36 | L161: 28592765004257 | M161: 8536201090 | N161: 0.48
A162: 100425 | B162: Ex9BH 3PN C8 | C162: Miniature Circuit Breaker 10 kA, characteristic C, 8 A, 3+Npole | D162: NAA | E162: 36.08 | F162: 0 | G162: 36.08 | H162: 8592765004260 | I162: 3 | J162: 18592765004267 | K162: 36 | L162: 28592765004264 | M162: 8536201090 | N162: 0.48
A163: 100426 | B163: Ex9BH 3PN C10 | C163: Miniature Circuit Breaker 10 kA, characteristic C, 10 A, 3+Npole | D163: NAA | E163: 24.29 | F163: 0 | G163: 24.29 | H163: 8592765004277 | I163: 3 | J163: 18592765004274 | K163: 36 | L163: 28592765004271 | M163: 8536201090 | N163: 0.48
A164: 100427 | B164: Ex9BH 3PN C13 | C164: Miniature Circuit Breaker 10 kA, characteristic C, 13 A, 3+Npole | D164: NAA | E164: 24.29 | F164: 0 | G164: 24.29 | H164: 8592765004284 | I164: 3 | J164: 18592765004281 | K164: 36 | L164: 28592765004288 | M164: 8536201090 | N164: 0.48
A165: 100428 | B165: Ex9BH 3PN C16 | C165: Miniature Circuit Breaker 10 kA, characteristic C, 16 A, 3+Npole | D165: NAA | E165: 24.29 | F165: 0 | G165: 24.29 | H165: 8592765004291 | I165: 3 | J165: 18592765004298 | K165: 36 | L165: 28592765004295 | M165: 8536201090 | N165: 0.48
A166: 100429 | B166: Ex9BH 3PN C20 | C166: Miniature Circuit Breaker 10 kA, characteristic C, 20 A, 3+Npole | D166: NAA | E166: 24.29 | F166: 0 | G166: 24.29 | H166: 8592765004307 | I166: 3 | J166: 18592765004304 | K166: 36 | L166: 28592765004301 | M166: 8536201090 | N166: 0.48
A167: 100430 | B167: Ex9BH 3PN C25 | C167: Miniature Circuit Breaker 10 kA, characteristic C, 25 A, 3+Npole | D167: NAA | E167: 24.29 | F167: 0 | G167: 24.29 | H167: 8592765004314 | I167: 3 | J167: 18592765004311 | K167: 36 | L167: 28592765004318 | M167: 8536201090 | N167: 0.48
A168: 100431 | B168: Ex9BH 3PN C32 | C168: Miniature Circuit Breaker 10 kA, characteristic C, 32 A, 3+Npole | D168: NAA | E168: 33.69 | F168: 0 | G168: 33.69 | H168: 8592765004321 | I168: 3 | J168: 18592765004328 | K168: 36 | L168: 28592765004325 | M168: 8536201090 | N168: 0.48
A169: 100432 | B169: Ex9BH 3PN C40 | C169: Miniature Circuit Breaker 10 kA, characteristic C, 40 A, 3+Npole | D169: NAA | E169: 33.69 | F169: 0 | G169: 33.69 | H169: 8592765004338 | I169: 3 | J169: 18592765004335 | K169: 36 | L169: 28592765004332 | M169: 8536201090 | N169: 0.48
A170: 100433 | B170: Ex9BH 3PN C50 | C170: Miniature Circuit Breaker 10 kA, characteristic C, 50 A, 3+Npole | D170: NAA | E170: 65.77 | F170: 0 | G170: 65.77 | H170: 8592765004345 | I170: 3 | J170: 18592765004342 | K170: 36 | L170: 28592765004349 | M170: 8536201090 | N170: 0.48
A171: 100434 | B171: Ex9BH 3PN C63 | C171: Miniature Circuit Breaker 10 kA, characteristic C, 63 A, 3+Npole | D171: NAA | E171: 65.77 | F171: 0 | G171: 65.77 | H171: 8592765004352 | I171: 3 | J171: 18592765004359 | K171: 36 | L171: 28592765004356 | M171: 8536201090 | N171: 0.48
A172: 100435 | B172: Ex9BH 4P C1 | C172: Miniature Circuit Breaker 10 kA, characteristic C, 1 A, 4-pole | D172: NAA | E172: 41.41 | F172: 0 | G172: 41.41 | H172: 8592765004369 | I172: 3 | J172: 18592765004366 | K172: 36 | L172: 28592765004363 | M172: 8536201090 | N172: 0.48
A173: 100436 | B173: Ex9BH 4P C2 | C173: Miniature Circuit Breaker 10 kA, characteristic C, 2 A, 4-pole | D173: NAA | E173: 41.41 | F173: 0 | G173: 41.41 | H173: 8592765004376 | I173: 3 | J173: 18592765004373 | K173: 36 | L173: 28592765004370 | M173: 8536201090 | N173: 0.48
A174: 100437 | B174: Ex9BH 4P C3 | C174: Miniature Circuit Breaker 10 kA, characteristic C, 3 A, 4-pole | D174: NAA | E174: 41.41 | F174: 0 | G174: 41.41 | H174: 8592765004383 | I174: 3 | J174: 18592765004380 | K174: 36 | L174: 28592765004387 | M174: 8536201090 | N174: 0.48
A175: 100438 | B175: Ex9BH 4P C4 | C175: Miniature Circuit Breaker 10 kA, characteristic C, 4 A, 4-pole | D175: NAA | E175: 41.41 | F175: 0 | G175: 41.41 | H175: 8592765004390 | I175: 3 | J175: 18592765004397 | K175: 36 | L175: 28592765004394 | M175: 8536201090 | N175: 0.48
A176: 100439 | B176: Ex9BH 4P C6 | C176: Miniature Circuit Breaker 10 kA, characteristic C, 6 A, 4-pole | D176: NAA | E176: 41.41 | F176: 0 | G176: 41.41 | H176: 8592765004406 | I176: 3 | J176: 18592765004403 | K176: 36 | L176: 28592765004400 | M176: 8536201090 | N176: 0.48
A177: 100440 | B177: Ex9BH 4P C8 | C177: Miniature Circuit Breaker 10 kA, characteristic C, 8 A, 4-pole | D177: NAA | E177: 41.41 | F177: 0 | G177: 41.41 | H177: 8592765004413 | I177: 3 | J177: 18592765004410 | K177: 36 | L177: 28592765004417 | M177: 8536201090 | N177: 0.48
A178: 100441 | B178: Ex9BH 4P C10 | C178: Miniature Circuit Breaker 10 kA, characteristic C, 10 A, 4-pole | D178: NAA | E178: 27.99 | F178: 0 | G178: 27.99 | H178: 8592765004420 | I178: 3 | J178: 18592765004427 | K178: 36 | L178: 28592765004424 | M178: 8536201090 | N178: 0.48
A179: 100442 | B179: Ex9BH 4P C13 | C179: Miniature Circuit Breaker 10 kA, characteristic C, 13 A, 4-pole | D179: NAA | E179: 27.99 | F179: 0 | G179: 27.99 | H179: 8592765004437 | I179: 3 | J179: 18592765004434 | K179: 36 | L179: 28592765004431 | M179: 8536201090 | N179: 0.48
A180: 100443 | B180: Ex9BH 4P C16 | C180: Miniature Circuit Breaker 10 kA, characteristic C, 16 A, 4-pole | D180: NAA | E180: 27.99 | F180: 0 | G180: 27.99 | H180: 8592765004444 | I180: 3 | J180: 18592765004441 | K180: 36 | L180: 28592765004448 | M180: 8536201090 | N180: 0.48
A181: 100444 | B181: Ex9BH 4P C20 | C181: Miniature Circuit Breaker 10 kA, characteristic C, 20 A, 4-pole | D181: NAA | E181: 27.99 | F181: 0 | G181: 27.99 | H181: 8592765004451 | I181: 3 | J181: 18592765004458 | K181: 36 | L181: 28592765004455 | M181: 8536201090 | N181: 0.48
A182: 100445 | B182: Ex9BH 4P C25 | C182: Miniature Circuit Breaker 10 kA, characteristic C, 25 A, 4-pole | D182: NAA | E182: 27.99 | F182: 0 | G182: 27.99 | H182: 8592765004468 | I182: 3 | J182: 18592765004465 | K182: 36 | L182: 28592765004462 | M182: 8536201090 | N182: 0.48
A183: 100446 | B183: Ex9BH 4P C32 | C183: Miniature Circuit Breaker 10 kA, characteristic C, 32 A, 4-pole | D183: NAA | E183: 39.23 | F183: 0 | G183: 39.23 | H183: 8592765004475 | I183: 3 | J183: 18592765004472 | K183: 36 | L183: 28592765004479 | M183: 8536201090 | N183: 0.48
A184: 100447 | B184: Ex9BH 4P C40 | C184: Miniature Circuit Breaker 10 kA, characteristic C, 40 A, 4-pole | D184: NAA | E184: 39.23 | F184: 0 | G184: 39.23 | H184: 8592765004482 | I184: 3 | J184: 18592765004489 | K184: 36 | L184: 28592765004486 | M184: 8536201090 | N184: 0.48
A185: 100448 | B185: Ex9BH 4P C50 | C185: Miniature Circuit Breaker 10 kA, characteristic C, 50 A, 4-pole | D185: NAA | E185: 75.37 | F185: 0 | G185: 75.37 | H185: 8592765004499 | I185: 3 | J185: 18592765004496 | K185: 36 | L185: 28592765004493 | M185: 8536201090 | N185: 0.48
A186: 100449 | B186: Ex9BH 4P C63 | C186: Miniature Circuit Breaker 10 kA, characteristic C, 63 A, 4-pole | D186: NAA | E186: 75.37 | F186: 0 | G186: 75.37 | H186: 8592765004505 | I186: 3 | J186: 18592765004502 | K186: 36 | L186: 28592765004509 | M186: 8536201090 | N186: 0.48
A187: 100450 | B187: Ex9BH 1P D1 | C187: Miniature Circuit Breaker 10 kA, characteristic D, 1 A, 1-pole | D187: NAA | E187: 9.91 | F187: 0 | G187: 9.91 | H187: 8592765004512 | I187: 12 | J187: 18592765004519 | K187: 144 | L187: 28592765004516 | M187: 8536201090 | N187: 0.12
A188: 100451 | B188: Ex9BH 1P D2 | C188: Miniature Circuit Breaker 10 kA, characteristic D, 2 A, 1-pole | D188: NAA | E188: 9.91 | F188: 0 | G188: 9.91 | H188: 8592765004529 | I188: 12 | J188: 18592765004526 | K188: 144 | L188: 28592765004523 | M188: 8536201090 | N188: 0.12
A189: 100452 | B189: Ex9BH 1P D3 | C189: Miniature Circuit Breaker 10 kA, characteristic D, 3 A, 1-pole | D189: NAA | E189: 9.91 | F189: 0 | G189: 9.91 | H189: 8592765004536 | I189: 12 | J189: 18592765004533 | K189: 144 | L189: 28592765004530 | M189: 8536201090 | N189: 0.12
A190: 100453 | B190: Ex9BH 1P D4 | C190: Miniature Circuit Breaker 10 kA, characteristic D, 4 A, 1-pole | D190: NAA | E190: 9.91 | F190: 0 | G190: 9.91 | H190: 8592765004543 | I190: 12 | J190: 18592765004540 | K190: 144 | L190: 28592765004547 | M190: 8536201090 | N190: 0.12
A191: 100454 | B191: Ex9BH 1P D6 | C191: Miniature Circuit Breaker 10 kA, characteristic D, 6 A, 1-pole | D191: NAA | E191: 9.91 | F191: 0 | G191: 9.91 | H191: 8592765004550 | I191: 12 | J191: 18592765004557 | K191: 144 | L191: 28592765004554 | M191: 8536201090 | N191: 0.12
A192: 100455 | B192: Ex9BH 1P D8 | C192: Miniature Circuit Breaker 10 kA, characteristic D, 8 A, 1-pole | D192: NAA | E192: 9.91 | F192: 0 | G192: 9.91 | H192: 8592765004567 | I192: 12 | J192: 18592765004564 | K192: 144 | L192: 28592765004561 | M192: 8536201090 | N192: 0.12
A193: 100456 | B193: Ex9BH 1P D10 | C193: Miniature Circuit Breaker 10 kA, characteristic D, 10 A, 1-pole | D193: NAA | E193: 9.18 | F193: 0 | G193: 9.18 | H193: 8592765004574 | I193: 12 | J193: 18592765004571 | K193: 144 | L193: 28592765004578 | M193: 8536201090 | N193: 0.12
A194: 100457 | B194: Ex9BH 1P D13 | C194: Miniature Circuit Breaker 10 kA, characteristic D, 13 A, 1-pole | D194: NAA | E194: 9.18 | F194: 0 | G194: 9.18 | H194: 8592765004581 | I194: 12 | J194: 18592765004588 | K194: 144 | L194: 28592765004585 | M194: 8536201090 | N194: 0.12
A195: 100458 | B195: Ex9BH 1P D16 | C195: Miniature Circuit Breaker 10 kA, characteristic D, 16 A, 1-pole | D195: NAA | E195: 9.18 | F195: 0 | G195: 9.18 | H195: 8592765004598 | I195: 12 | J195: 18592765004595 | K195: 144 | L195: 28592765004592 | M195: 8536201090 | N195: 0.12
A196: 100459 | B196: Ex9BH 1P D20 | C196: Miniature Circuit Breaker 10 kA, characteristic D, 20 A, 1-pole | D196: NAA | E196: 9.18 | F196: 0 | G196: 9.18 | H196: 8592765004604 | I196: 12 | J196: 18592765004601 | K196: 144 | L196: 28592765004608 | M196: 8536201090 | N196: 0.12
A197: 100460 | B197: Ex9BH 1P D25 | C197: Miniature Circuit Breaker 10 kA, characteristic D, 25 A, 1-pole | D197: NAA | E197: 9.18 | F197: 0 | G197: 9.18 | H197: 8592765004611 | I197: 12 | J197: 18592765004618 | K197: 144 | L197: 28592765004615 | M197: 8536201090 | N197: 0.12
A198: 100461 | B198: Ex9BH 1P D32 | C198: Miniature Circuit Breaker 10 kA, characteristic D, 32 A, 1-pole | D198: NAA | E198: 9.18 | F198: 0 | G198: 9.18 | H198: 8592765004628 | I198: 12 | J198: 18592765004625 | K198: 144 | L198: 28592765004622 | M198: 8536201090 | N198: 0.12
A199: 100462 | B199: Ex9BH 1P D40 | C199: Miniature Circuit Breaker 10 kA, characteristic D, 40 A, 1-pole | D199: NAA | E199: 11.49 | F199: =NAA -> 0 | G199: =E199*(1-F199) -> 11.49 | H199: 8592765004635 | I199: 12 | J199: 18592765004632 | K199: 144 | L199: 28592765004639 | M199: 8536201090 | N199: 0.12
A200: 100463 | B200: Ex9BH 1P D50 | C200: Miniature Circuit Breaker 10 kA, characteristic D, 50 A, 1-pole | D200: NAA | E200: 32.52 | F200: 0 | G200: 32.52 | H200: 8592765004642 | I200: 12 | J200: 18592765004649 | K200: 144 | L200: 28592765004646 | M200: 8536201090 | N200: 0.12
A201: 100464 | B201: Ex9BH 1P D63 | C201: Miniature Circuit Breaker 10 kA, characteristic D, 63 A, 1-pole | D201: NAA | E201: 32.52 | F201: 0 | G201: 32.52 | H201: 8592765004659 | I201: 12 | J201: 18592765004656 | K201: 144 | L201: 28592765004653 | M201: 8536201090 | N201: 0.12
A202: 100465 | B202: Ex9BH 1PN D1 | C202: Miniature Circuit Breaker 10 kA, characteristic D, 1 A, 1+Npole | D202: NAA | E202: 16.75 | F202: 0 | G202: 16.75 | H202: 8592765004666 | I202: 6 | J202: 18592765004663 | K202: 72 | L202: 28592765004660 | M202: 8536201090 | N202: 0.24
... 5241 more rows

Sheet Discount groups
A1: Discount group | B1: Description | C1: Sale
A2: NA | B2: Installation Devices | C2: 0
A3: NAA | B3: Miniature Circuit Breakers 10 kA | C3: =NA -> 0
A4: NAB | B4: Miniature Circuit Breakers 6 kA | C4: 0
A5: NAC | B5: Residual Current Devices 10 kA | C5: 0
A6: NAD | B6: Residual Current Devices 6 kA | C6: 0
A7: NAE | B7: Residual Current Breakers with Overload protection 10 kA | C7: 0
A8: NAF | B8: Residual Current Breakers with Overload protection 6 kA | C8: 0
A9: NAG | B9: Residual Current Devices Add-on Blocks | C9: 0
A10: NAH | B10: Isolators | C10: 0
A11: NAI | B11: Miniature Circuit Breakers Ex9PN-N, 6 kA | C11: 0
A12: NAK | B12: Miniature Circuit Breakers 4,5 kA | C12: 0
A13: NAL | B13: DC Miniature Circuit Breakers 10 kA, non-polarized | C13: 0
A14: NAM | B14: DC Miniature Circuit Breakers 6 kA, non-polarized | C14: 0
A15: NAN | B15: DC Isolators | C15: 0
A16: NAO | B16: DC SPDs class II for PV | C16: 0
A17: NAP | B17: DC Miniature Circuit Breakers 10 kA for PV, non-polarized | C17: 0
A18: NAQ | B18: DC Miniature Circuit Breakers 6 kA for PV, non-polarized | C18: 0
A19: NAR | B19: AC SPD class 1+2 and 2 | C19: 0
A20: NAS | B20: Installation relays ans contactors | C20: 0
A21: NAU | B21: Switches, signal lamps and bells | C21: 0
A22: NAV | B22: DC Miniature Circuit Breakers 10 kA, polarized | C22: 0
A23: NAW | B23: Miniature Circuit Breakers up to 125 A | C23: 0
A24: NAX | B24: Timers, Light intensity switches, Staircase switches | C24: 0
A25: NAZ | B25: Energy meters | C25: 0
A26: NAAA | B26: 1 module RCBO - electronic type | C26: 0
A27: NAAB | B27: Slim MCB | C27: 0
A29: NB | B29: Industrial Devices | C29: 0
A30: NBA | B30: Contactors, Reversible contactors | C30: =NB -> 0
A31: NBB | B31: Overload Thermal Relays | C31: 0
A32: NBC | B32: Contactors for capacity loads | C32: 0
A33: NBD | B33: Low-power consumption contactors | C33: 0
A34: NBF | B34: Panel mounted devices | C34: 0
A35: NBG | B35: Motor protective circuit breakers | C35: 0
A36: NBH | B36: Plug-in relays | C36: 0
A38: NC | B38: Moulded Case and Air Circuit Breakers | C38: 0
A39: NCA | B39: Moulded Case Circuit Breakers | C39: =NC -> 0
A40: NCB | B40: DC Moulded Case Circuit Breakers | C40: =NC -> 0
A41: NCC | B41: Air Circuit Breakers and Air Switch Disconnectors | C41: =NC -> 0
A42: NCD | B42: AC Switch disconnectors | C42: =NC -> 0
A43: NCE | B43: DC Switch disconnectors | C43: =NC -> 0
A44: NCF | B44: Molded Case Circuit Breakers with electronic tripping unit | C44: =NC -> 0
A46: ND | B46: Distribution boards and Connection Systems | C46: 0
A47: NDA | B47: Plastic Consumer Units | C47: =ND -> 0
A48: NDB | B48: Busbars | C48: 0
A49: NDC | B49: Plastic Consumer Units with metal door | C49: 0
A50: NDD | B50: Metal flat enclosures | C50: 0
A51: NDE | B51: Distribution blocks | C51: 0
A52: NDF | B52: Plastic Consumer Units for hollow-walls mounting | C52: 0
A53: NDG | B53: GRP distribution board | C53: 0
A54: NDH | B54: Metal enclosure IP66 | C54: =ND -> 0
A56: NE | B56: Fuse systems | C56: 0
A57: NEA | B57: Fuse disconnectors | C57: =NE -> 0
A58: NEB | B58: Cylindrical Fuse Holder | C58: =NE -> 0
A60: NF | B60: Pre-wired boards | C60: 0
A61: NFB | B61: DC boards for PV applications | C61: =NF -> 0
A63: NG | B63: Photovoltaic devices | C63: 0
A64: NGC | B64: Smart monitoring devices | C64: =NG -> 0
A65: NGD | B65: EV chargers | C65: =NG -> 0

Sheet Order
A1: Order No.
A2: Supplier:
A3: NOARK Electric Europe s.r.o. | D3: ID: 24123846 | F3: VAT number: CZ 24123846
A4: Sezemická 2757/2 | D4: Account: 51-0016810227/0100 | F4: Bank: 0100
A5: 193 00 Praha 9 | D5: "Contact person" | F5: Tel.:
A6: Czech Republic | D6: E-mail:
A7: Buyer: | D7: Customer ID: | F7: Date:
A8: NOARK Electric Europe s.r.o. | D8: ID: | F8: VAT number:
A9: Sezemická 2757/2 | D9: Account: | F9: Bank:
A10: 193 00 Prague 9 | D10: "Contact person" | F10: Tel.:
A11: Czech Republic | D11: E-mail:
A13: Item No. | B13: Article No. | C13: Type | D13: Description | E13: Discount group | F13: Price with discount (EUR) | G13: pieces | H13: Total price (EUR)
H14: 0
E18: Total order price: | H18: =SUM(H14:H14) -> 0
A20: All prices are given without VAT. All price agreements, scope of delivery as well as way of delivery are defined
A21: In General Business Terms or alternatively by Frame Contract and its appendixes.

Sheet Offer
A1: Offer Nr.
A2: Supplier:
A3: NOARK Electric Europe s.r.o. | D3: ID: 24123846 | F3: VAT number: CZ 24123846
A4: Sezemická 2757/2 | D4: Account: 51-0016810227/0100 | F4: Bank: 0100
A5: 193 00 Prague 9 | D5: "Contact person" | F5: Tel.:
A6: Czech Republic | D6: E-mail:
A7: Buyer: | D7: Customer ID: | F7: Date:
A8: NOARK Electric Europe s.r.o. | D8: ID: | F8: VAT number:
A9: Sezemická 2757/2 | D9: Account: | F9: Bank:
A10: 193 00 Praha 9 | D10: "Contact person" | F10: Tel.:
A11: Czech Republic | D11: E-mail:
A13: Item No. | B13: Article No. | C13: Type | D13: Description | E13: Discount group | F13: Price with discount (EUR) | G13: Number of pieces | H13: Total price (EUR)
H14: 0
E18: Total offer price: | H18: =SUM(H14:H14) -> 0
A20: All prices are given without VAT. All price agreements, scope of delivery as well as way of delivery are defined
A21: In General Business Terms or alternatively by Frame Contract and its appendixes.
A22: The price is valid when all the goods and quantity demanded at once.
A23: If demand changes, price also changes depending on products and quantities.

Sheet Terms and Conditions
B2: _____________________________________________________________________
B3: GENERAL COMMERCIAL TERMS AND CONDITIONS
B4: _____________________________________________________________________
B8: I. Introductory Provisions
B9: 1.1 These General Commercial Terms and Conditions (“GCTC”) of NOARK Electric Europe s.r.o., having its registered office in Prague 9, Horní Počernice, Sezemická 2757/2, postcode: 193 00, registered in the Commercial Register kept by the Municipal Court in Prague, Section C, file No. 181277 (the “Seller”), define the mutual rights and obligations of the Seller and the person (the “Buyer”), who is interested in purchasing the goods offered by the Seller (the “Goods”) in the current price list of the Goods (the “Price List”).
B10: 1.2 Where no general agreement (the “General Agreement”) specifying different arrangements under the particular points has been concluded between the Seller and the Buyer (jointly referred to as the “Parties or each individually as the “Party”), these GCTC and the Purchase Contract (as defined below) shall constitute the entire and final agreement between the Parties on the terms and conditions for the delivery and acceptance of the Goods. Any matters not covered herein shall be governed by the relevant provisions of Act No. 89/2012 Coll., the Civil Code, as amended (the “Civil Code”).
B11: II. Purchase Order for the Goods
B12: 2.1 The Buyer was made acquainted by the Seller with the contents of these GCTC and, on the basis of these GCTC and other information provided by the Seller, the Buyer has expressed, by means of a purchase order (the “Purchase Order”) its wish to purchase the Goods from the Seller for the price as indicated in the Price List or as otherwise agreed (the “Purchase Price”).
B13: 2.2 A Purchase Order shall always include: (a) identification data of the person authorized to represent the Buyer, (b) description (code) of the ordered Goods pursuant to the Price List and their quantity, and (c) method of delivery of the Goods and where applicable, other particulars which the Parties have agreed on. The completed Purchase Order shall be delivered by the Buyer to the Seller in person, sent by postal service to the Seller’s registered office address or to the address indicated in the General Agreement, or shall deliver the Purchase Order to the Seller by e-mail or deliver it to the Seller in another manner agreed by the Parties. The Purchase Order shall be deemed to constitute a proposal to sign an individual purchase contract and, consequently, shall become binding upon its delivery to the Seller. By sending the Purchase Order, the Buyer gives its explicit consent with the purchase contract (and any and all obligations arising therefrom) being governed by the GCTC. The Seller shall be obliged to mark the date of this receipt on the delivered Purchase Order. The purchase contract shall be concluded upon the signing of the delivered Purchase Order by the Seller (the “Purchase Contract”).
B14: III. Purchase Price, Invoicing, Payment Terms and Conditions
B15: 3.1 For the Goods delivered, the Buyer shall be obliged to pay to the Seller the purchase price determined pursuant to the valid Price List or otherwise agreed by the Parties plus VAT. In order to rule out all doubts, it is agreed that purchase prices are stipulated in the Price List exclusive of VAT.
B16: 3.2 The Seller shall be entitled to make changes to the Price List at any time and on a unilateral basis; however, any change or modification to the Price List shall not apply to any Goods ordered based on the Purchase Orders that were delivered to the Seller prior to the date of such change or modification. An updated Price List indicating the effective date shall be published on the Seller’s website or sent to the Buyer by means of an e-mail message.
B17: 3.3 Unless agreed otherwise between the Seller and the Buyer, the Purchase Price shall not include the costs of packaging, transport, handling, installation and commissioning of the Goods, or the packaging disposal and recycling costs (“Other Costs”). The amount of Other Costs shall be indicated in the Price List and added to the Purchase Price.
B18: 3.4 The Purchase Price shall be due and payable within seven (7) days after the issue date of the respective tax document (pro forma invoice), which must meet the particulars required by Act No. 235/2004 Coll., on Value Added Tax, as amended. The respective amount shall be paid by the Buyer by bank transfer to the Seller’s account as indicated in the relevant invoice or otherwise notified to the Buyer. The Purchase Price shall be deemed to have been paid on the date when the full amount is credited to the respective account of the Seller.
B19: 3.5 If the Buyer is in delay with the payment of any invoice, the Seller shall be entitled to claim a contractual fine amounting to 0.05% of the amount due for each and every day of delay.
B20: IV. Delivery of the Goods
B21: 4.1 The Goods may only be delivered once the Purchase Price has been paid in full. The delivery period shall be thirty (30) days from the payment of the Purchase Price unless the Seller determines otherwise. The Seller shall be entitled to suspend the delivery period for the Goods for the duration of the delay by the Buyer with the payment of any amount due arising from the General Agreement or the Purchase Contract. The Seller shall assume no responsibility for such delay.
B22: 4.2 The Seller shall be obliged to deliver the Goods to the Buyer by sending them to the Buyer’s address as indicated in the Purchase Contract or, as the case may be, to another address notified to the Seller in writing (the “Shipment”). The Seller’s obligation shall be deemed to have been duly performed and the Goods to have been delivered to the Buyer upon the moment when the Shipment is handed over for transport to the first carrier. The Shipment shall always be clearly and sufficiently marked as a shipment intended for the Buyer; the delivery of the Goods shall thus be effective upon the handover of the Shipment to the first carrier for transportation. In consistence with the Civil Code, the risk of damage to the Goods shall be transferred to the Buyer upon the handover of the Shipment to the first carrier for transport to the place of delivery.
B23: 4.3 Unless otherwise set out in these GCTC or otherwise agreed between the Seller and the Buyer, the Goods shall be delivered under the CIP term in accordance with INCOTERMS 2010. The place of shipment and place of destination shall be agreed upon in the particular case between the Seller and the Buyer.
B24: V. Acquisition of the Title to the Goods
B25: 5.1 The Buyer shall acquire the title to the Goods upon their handover to the Buyer, provided that the Purchase Price has been paid in full by the Buyer.
B26: VI. Warranty
B27: 6.1 The Seller shall provide a quality warranty for the Goods to the Buyer; the warranty period shall be five (5) years after the date of acceptance of the Goods by the Buyer (the “Warranty Period”). With the quality warranty, the Seller undertakes that the Goods purchased by the Buyer shall be fit for the agreed purpose of use throughout the specified Warranty Period.
B28: 6.2 The Warranty shall particularly not apply to defects caused by or arising from:
B29: (a) Improper storage of the Goods prior to their installation and commissioning;
B30: (b) Inappropriate, incorrectly designed or wrongly performed installation of the Goods, or improper use of the Goods;
B31: (c) Wear and tear related to the natural life cycle of the Goods and their regular use (e.g. the varistor of surge voltage protectors);
B32: (d) Excessive use of the Goods, i.e. their use contrary to the recommendations or instructions by the Seller (e.g. by exceeding the number of the declared operating cycles);
B33: (e) Any change or modification to the Goods that was carried out by the Buyer or any third person, except for persons designated or approved by the Seller;
B34: (f) External factors outside of the control of the Seller;
B35: (g) Force majeure, covering particularly flooding, fire, lightning, earthquake, strikes or civil riots.
B36: 6.3 Exclusions from the Warranty are specified in detail in the claims handling rules, which are available at the Seller’s website (the “Claims Handling Rules”).
B37: In case of discrepancies between the provisions of the Claim Handling Rule and these GCTC the GCTC shall prevail.
B39: 6.4 Any returning of the Goods by the Purchaser to the Seller is subject to the Seller’s consent. The Goods may be returned only if the Goods is complete and not damaged including packaging no later than two (2) years from their delivery. The price for which the Seller buys such Goods shall be determined by the Purchaser on the basis of a check performed by the Seller. All costs associated with the back sale (postage, packaging fee etc.) to the Seller shall be borne by the Purchaser. At the Seller’s request the Purchaser shall pay the Seller a service charge in order to cover other additional costs incurred by the Seller in connection with the returning of the.
B41: VII. Claims and European Warranty
B42: 7.1 The Buyer shall be entitled to exercise rights arising from defective performance in connection with any defects of the Goods occurring during the Warranty Period (the “Claim”) at any branch office of the Seller indicated in the list, which was submitted to the Buyer upon the purchase of the Goods and which is available at the Seller’s website (the “List”). Under the terms and conditions defined in the Claims Handling Rules, the Buyer shall be entitled to file the Claim also outside of the territory of the country, in which the Goods were purchased.
B43: 7.2 The Buyer shall exercise the rights arising from defective performance concerning the delivered amount of the Goods no later than fourteen (14) days from the delivery of the Goods.
B44: 7.3 Upon its acceptance the Buyer shall inspect the Goods to the possible extent and report defects (if any) by means of the transporter’s protocol. The rights arising from defective performance concerning defects the Purchaser could have discovered during the acceptance of the Goods shall cease to exist upon the acceptance of the Goods in which case the Claim will not be accepted. However, the Seller shall be authorised but no obligated to accept the Claim even in such an event.
B45: 7.4 The Buyer hereby acknowledges that the exclusions from the Warranty, the terms and conditions for filing the Claim, and the circumstances under which a Claim will not be accepted as justified shall be governed by the Claims Handling Rules, the contents of which were made known to the Buyer prior to concluding the Purchase Contract.
B46: VIII. Personal Data Processing
B47: 8.1 Any personal data of the Buyer in terms of Section 4 (a) of Act No. 101/2000 Coll., on Personal Data Protection, as amended (the “PDP Act”), which were provided by the Buyer to the Seller in connection with the conclusion and performance of the General Agreement or the Purchase Contract or which were obtained by the Seller in other legitimate ways or, as appropriate, created by the processing of such obtained data (the “Personal Data”), shall be processed by the Seller or by a processer authorized by the Seller for the purposes of using such Personal Data in relation to the Seller’s sphere of business, i.e. for activities directly or indirectly related to the Seller’s commercial activities, including commercial offers and customer care, in automated manner (using computer technology) as well as manually. The Personal Data shall be processed by the Seller throughout the duration of the contractual relationship established by the General Agreement or the Purchase Contract as well as for the period of time required by generally binding legal regulations. The Buyer declares to be aware of the scope, method, purpose and duration of Personal Data processing as defined in the General Agreement, the Purchase Contract and these GCTC and, by signing the General Agreement or the Purchase Contract, the Buyer gives an explicit consent to the Seller with such Personal Data processing. In addition, the Buyer agrees that the Personal Data can be processed and transmitted by the Seller and any other administrator, to be understood as also among them or by third parties (including to a third country), in order to duly perform the General Agreement or the Purchase Contract, improve customer care in relation to the Buyer, perform marketing activities or inform other administrators about the Buyer’s solvency and trustworthiness.
B48: IX. Sending of Commercial Communications
B49: 9.1 The Buyer hereby acknowledges that commercial communications in terms of Section 2 (f) of Act No. 480/2004 Coll., on Certain Information Society Services, as amended, can be send by the Seller using electronic means to the addresses provided by the Buyer to the Seller in connection with the General Agreement or the Purchase Contract and, by signing the General Agreement or the Purchase Contract, the Buyer gives an explicit consent to the Seller to do so.
B50: X. Notices
B51: 10.1 Unless specified otherwise, any and all notices, messages or other communications between the Parties must be made in writing. The Parties shall be obliged to deliver written documents to each other to the addresses indicated in the General Agreement or the Purchase Contract or otherwise notified by the Parties: (a) by personal delivery with receipt confirmation; (b) by registered letter; (c) by a courier service with receipt confirmation; or (d) by e-mail. Any acts affecting the commencement, modification or termination of the General Agreement or the Purchase Contract must be delivered strictly in writing to the address of the registered office or the address indicated in the General Agreement. Any notice shall be deemed duly delivered to the respective Party upon its reaching the addressee’s disposition sphere. Notices shall be deemed to have been delivered under Section 570 of the Civil Code also if the Party that is the addressee intentionally frustrates their delivery. Notices sent with the use of a postal services provider shall be deemed to have been delivered on the third (or the 15th in case of notices sent abroad) business day following their dispatching.
B52: 10.2 The Parties undertake to notify each other in writing and without delay on any changes in any data indicated in the General Agreement or the Purchase Contract. In the event that either of the Parties violates this obligation, any correspondence sent to the last known address of such Party shall be deemed to have been delivered although the recipient is no longer staying at that address and, consequently, has not had the opportunity to make itself acquainted with the contents of the shipment.
B53: XI. Final Provisions
B54: 11.1 The General Agreement and the Purchase Contract (including the relationships arising therefrom) shall be governed by the laws of the Czech Republic.
B55: 11.2 The Parties undertake to settle any and all mutual disputes related to the General Agreement or the Purchase Contract in an amicable way. In the event that an amicable settlement cannot be reached within thirty (30) days after the date when either of the Parties informed the other Party in writing about the rise of a dispute and requested an amicable settlement thereof, such dispute or controversy shall be finally settled by three (3) arbitrators of the Arbitration Court attached to the Economic Chamber of the Czech Republic and the Agricultural Chamber of the Czech Republic, having its seat in Prague (the “Arbitration Court”), in accordance with the Rules of the Arbitration Court. The place of venue of the arbitration shall be Prague. The arbitration proceedings shall be held in Czech language. Each Party shall appoint one (1) arbitrator. Within thirty (30) days after their appointment, the two (2) arbitrators appointed by the Parties shall appoint a third arbitrator to act as the chairman of the arbitration panel. If either of the Parties fails to appoint an arbitrator within the period of thirty (30) days after the receipt of the request of the other Party to appoint an arbitrator, or if the already appointed arbitrators fail to appoint a third arbitrator within the period of thirty (30) days after the appointment of the second arbitrator, the respective arbitrator(s) shall be appointed by the Chairman of the Arbitration Court. The arbitration award shall be binding for the Parties. The Parties undertake to comply with the obligations arising from the arbitration award. This arbitration clause shall be enforceable separately. In the event that certain disputes are excluded from the jurisdiction of the Arbitration Court pursuant to the applicable legal regulations of the Czech Republic, they shall be settled before the competent court.
B56: 11.3 These GCTC shall be valid and effective as of 1 January 2015.

Sheet Claims Handling Rules
B1: ______________________________________________________
B2: CLAIMS HANDLING RULES
B3: ______________________________________________________
B6: I. OPENING PROVISIONS
B7: 1.1 The present Claims Handling Rules (the “Claims Handling Rules”) of NOARK Electric Europe s.r.o., with its registered ofice at Prague 9, Horní Počernice, Sezemická 2757/2, Postcode: 193 00, registered in the commercial register maintained by the Municipal Court in Prague, Section C, file 181277 (the “Seller”) determine the mutual rights and responsibilities resulting from rights arising from defective performance concerning goods supply to the market by Seller (the “Goods”) and the person who has purchased such Goods for the purpose of its use (the “Buyer”). Unless specified otherwise herein, terms with capitalized first letters shall have the meaning specified in the Seller's General Terms and Conditions (the “GTC”), which are available at the Seller’s website.
B9: II. WARRANTY
B10: 2.1 The Seller provides the Buyer with a warranty covering the quality of the Goods, lasting for five (5) years following the day of the Goods receipt by the Buyer (the "Warranty Period”). With this quality warranty, the Seller undertakes that during the Warranty Period, the Goods purchased by the Buyer shall be fit for use for the agreed purpose.
B11: 2.2 The warranty does not apply to defects caused or suffered especially as result of:
B12: (a) improper storage of the Goods prior to installation and commissioning, i.e. by storing them in an area and under conditions that are in conflict with the relevant product standard and the Declaration of Conformity (unless stipulated otherwise by the Seller in writing), conditions specified in the GTC, User Manual, instructions for use, catalogue or another document issued or indicated by the Seller for these purposes;
B13: (b) improper, wrongly designed or wrongly conducted the Goods installation, which means especially installation carried out in conflict with the conditions and requirements specified in either of the documents specified under point a) above;
B14: (c) incorrect use of the Goods, meaning especially using the Goods in conflict with either of the documents specified under point a) above;
B15: (d) using the Goods for purpose other than defined in either of the documents specified under point a) above;
B16: (e) wear and tear related to the natural life cycle of the Goods and their regular use (e.g. the varistor of surge voltage protectors);
B17: (f) excessive use of the Goods i.e. use in conflict with the Seller’s recommendation or instructions (e.g. by exceeding the number of declared operating cycles);
B18: (g) using the Goods in conflict with any operating or installation condition specified in a product standard or any other document specified under point a) above;
B19: (h) using the Goods in an environment or area under the influence of external impacts and/or if such environment or area does not correspond to the conditions stipulated or recommended by the Seller;
B20: (i) incorrect maintenance of the Goods, meaning especially maintenance carried out in conflict with any of the documents specified under point a) above;
B21: (j) connecting the Goods to any other goods or any other product or equipment in a manner other than recommended or stipulated by the Seller in either of the documents specified under point a) above;
B22: (k) any changes or modifications of the Goods, carried out by the Buyer or any third person except persons determined or approved by the Seller;
B23: (l) external impacts beyond the Seller’s control, meaning especially the effect of solar or other radiation, electromagnetic field, penetration of liquids, dust, pollen or any other object, overvoltage in the power system, line voltage fluctuations, overvoltage or short-circuit on inputs or outputs, voltage generated by electrostatic discharge (incl. lightning), incorrect feed or input voltage, unsuited voltage polarity or impact of chemical processes; and
B24: (m) acts of Force Majeure, including but not limited to inundation, flood, fire, lightning, earthquake, strike or civil riots.
B25: 2.3 If the Goods have no defect but do not fulfil the functions foreseen or expected by the Buyer, or if the Goods cannot fulfil such functions because their installation has been designed or carried out in a way even objectively preventing the Goods from fulfilling these functions, such situation is not deemed a conflict with the Purchase Agreement and no warranty claim shall be accepted. Furthermore, no discrepancy in size, colour or shape of the Goods compared to its representation specified in a catalogue or another document of the Seller shall be considered a defect.
B27: III. CLAIMS AND EUROPEAN WARRANTY
B28: 3.1 The Buyer is entitled to raise a claim covered by its rights arising from defective performance concerning the Goods that occurred in the course of the Warranty Period (the “Claim”) at either branch store included in the list provided to the Buyer at the moment of purchase of Goods or available at Seller's website (the “List”).
B29: 3.2 Under the terms of these Claim Handling Rules the Buyer is entitled to raise the Claim also outside the territory of the country, where the Goods have been purchased, provided that such other country (business premises) is included in the List.
B30: 3.3 The following conditions shall be met in order to assert the Claim:
B31: (a) identification of a person that has purchased the Goods and raises the Claim;
B32: (b) identification of the Goods which are subject of the Claim (type, code and other identification details of the Goods);
B33: (c) presenting the original certificate of purchase of the Goods;
B34: (d) completing a claim protocol in the language of the relevant country, where the Claim is being raised;
B35: (e) a detailed description of the defect in the Goods and how the defect becomes evident;
B36: (f) a detailed description of the technique of commissioning and use of Goods;
B37: (g) preferred method of handling the Claim; and
B38: (h) raising the Claim exclusively in an authorized service workshop specified in the List.
B39: 3.4 The Claim shall be handled without undue delay in the following manners:
B40: (a) if the defect is reparable, the Buyer is entitled to require (i) remedy of defect by the Goods repair, (ii) delivery of the missing Goods; or (iii) an adequate Purchase Price discount; and
B41: (b) if the defect is irreparable, the Buyer is entitled to require (i) replacement of the Goods; (ii) Purchase Price discount; or the Buyer can withdraw from the Purchase Agreement.
B42: 3.5 The Buyer acknowledges and agrees that if a Claim is raised (i) in a country other than the country where the Goods have been originally purchased; or at (ii) any party other than the party from which the Goods have been originally purchased (e.g. if the Buyer has purchased the Goods from a third party and raises a Claim directly towards the Seller), shall be, differently from the Article 3.4 of these Claims Handling Rules, handled exclusively by a repair or replacement of the Goods. For avoidance of any doubt about the meaning of this arrangement, it is expressly stated that in cases according to the first sentence of this Article, the Claim cannot be settled by granting a discount and it is impossible to withdraw from the purchase agreement on the basis of which the Goods were purchased.
B43: 3.6 The Buyer is entitled to choose the method of remedying the defect of the Goods. This entitlement is limited in the case of Claims under the Article 3.5 of these Claim Handling Rules.
B45: IV. VALIDITY OF CLAIMS HANDLING RULES
B46: 4.1 These Claims Handling Rules enter into force as of 1 January 2015.

Sheet Manual
B2: ______________________________________________________
B3: MANUAL
B4: ______________________________________________________
B7: 1. Select list "Discount groups" and define discount conditions. You can set it either for basic groups or for detailed groups.
B8: 2. Discount conditions must be set before you create an order or offer. Consecutive changes are not included in existing order or offer.
B9: 3. To add an item into an Order select any cell in a row with appropriate product and click on "Add to order" button.
B10: 4. To add an item into an Offer select any cell in a row with appropriate product and click on "Add to offer" button.
B11: 5. After clicking on a button according to 3. or 4. a window will appear. Write down a number of requested pieces and press Enter.
B12: 6. You can select more products by using Shift or Alt button. Number of pieces windows will be shown step by step.
B13: 7. Fill in contact details in a header on "Order" or "Offer" list
B14: 8. In case you want to delete any row in an offer or order, select any cell in given row and press "Delete row" button.
B15: 9. You can delete whole list of products from an offer or order by clicking "Delete all" button
B16: 10. You can save your order or offer as a standatrd Excel procedure.
B17: 11. You can export your offer or order to pdf file by clicking "Save as PDF" button.
B18: 12. For printing of an offer or order, please use standard Excel printing tools.
